Workbook

Sheet واجهة حجز
A2: دون اسم المؤسسة: | C2: المؤسسة : متوسطة بلطرش ثامر
A3: بلدية المؤسسة: | C3: عين الحجل | F3: أساتذة | G3: 1 | H3: منحة الخبرة البيداغوجية | I3: منحة تحفيزية تعويضية | K3: منحة السكن | L3: منحة التأهيل | M3: منحة نوعية للمنصب | N3: منحة الدعم المدرسي | O3: منحة التوثيق التربوي
A4: دون الشهر الموافق: | C4: فيفري 2018 | F4: اداريين 1 | G4: 2 | H4: منحة التسيير المالي والمادي | I4: منحة تحفيزية تعويضية | K4: منحة السكن | L4: منحة التأهيل | M4: منحة نوعية للمنصب | N4: منحة الدعم المدرسي | O4: منحة التوثيق التربوي
A5: المكان والتاريخ: | C5: عين الحجل في : | D5: =TODAY() -> 2018-02-21 | F5: اداريين 2 | G5: 3 | H5: منحة الخبرة البيداغوجية | I5: منحة تحفيزية تعويضية | J5: تعويض تسيير مؤسسة تعليمية | K5: منحة السكن | L5: منحة التأهيل | M5: منحة نوعية للمنصب | N5: منحة الدعم المدرسي | O5: منحة التوثيق التربوي
A6: صفة الموقع: | C6: المسير المالي
C9: ملاحظة هامة:
C10: دون الرقم: 01 في خانة الأجر الوحيد واقتطاع التعاضدية إن وجدا
C11: يتوافق مع نسخة 2010 فما فوق

Sheet قائمة
A1: الرقم | B1: اللقب والاسم | C1: الرتبة | D1: ح العائلية | E1: ع الأولاد | F1: < 10 | G1: أ الوحيد | H1: ت أ الوحيد | I1: رقم الحساب | J1: الصنف | K1: الرقم إ الأدنى | M1: الرقم الاستدلالي | N1: الدرجة | P1: الرقم إ للدرجات | Q1: م ت تعويضية | R1: علاوة المنصب ت ت م تعليمية | S1: م التوثيق | T1: م السكن | U1: م التأهيل | V1: م ن للمنصب | W1: م د المدرسي | Y1: إ التعاضدية | Z1: إ الخدمات | AA1: إ أخرى
A2: 1 | B2: بن عامر حدة | C2: أستاذ في التعليم المتوسط | D2: متزوجة | I2: 9223194/12 | J2: 12 | K2: =IF(J2="","",VLOOKUP(J2,'الشبكة الاستدلالية للمرتبات'!A:C,3,0)) -> 537 | L2: =MATCH(K2,'الشبكة الاستدلالية للمرتبات'!C2:C19,0) -> 13 | M2: =K2+P2 -> 537 | O2: =MATCH(N2,'الشبكة الاستدلالية للمرتبات'!C2:P2,0) -> 2 | P2: =INDEX('الشبكة الاستدلالية للمرتبات'!C2:P19,L2,O2) -> 0 | Q2: =VLOOKUP(J2,'الشبكة الاستدلالية للمرتبات'!R3:V19,5,0) -> 1500 | S2: =VLOOKUP(J2,'الشبكة الاستدلالية للمرتبات'!R3:S19,2,0) -> 2500 | T2: =VLOOKUP(J2,'الشبكة الاستدلالية للمرتبات'!R3:X19,7,0) -> 1000 | U2: =VLOOKUP(J2,'الشبكة الاستدلالية للمرتبات'!R3:T19,3,0) -> 40 | V2: =VLOOKUP(J2,'الشبكة الاستدلالية للمرتبات'!R3:U19,4,0) -> 10 | W2: =VLOOKUP(J2,'الشبكة الاستدلالية للمرتبات'!R3:W19,6,0) -> 15
A3: 2 | B3: بوعافية خديجة | C3: أستاذ في التعليم المتوسط | D3: عازبة | I3: 16354459/51 | J3: 12 | K3: =IF(J3="","",VLOOKUP(J3,'الشبكة الاستدلالية للمرتبات'!A:C,3,0)) -> 537 | L3: =MATCH(K3,'الشبكة الاستدلالية للمرتبات'!C2:C19,0) -> 13 | M3: 537 | O3: =MATCH(N3,'الشبكة الاستدلالية للمرتبات'!C2:P2,0) -> 2 | P3: =INDEX('الشبكة الاستدلالية للمرتبات'!C2:P19,L3,O3) -> 0 | Q3: =VLOOKUP(J3,'الشبكة الاستدلالية للمرتبات'!R3:V19,5,0) -> 1500 | S3: =VLOOKUP(J3,'الشبكة الاستدلالية للمرتبات'!R3:S19,2,0) -> 2500 | T3: =VLOOKUP(J3,'الشبكة الاستدلالية للمرتبات'!R3:X19,7,0) -> 1000 | U3: =VLOOKUP(J3,'الشبكة الاستدلالية للمرتبات'!R3:T19,3,0) -> 40 | V3: =VLOOKUP(J3,'الشبكة الاستدلالية للمرتبات'!R3:U19,4,0) -> 10 | W3: =VLOOKUP(J3,'الشبكة الاستدلالية للمرتبات'!R3:W19,6,0) -> 15
A4: 3 | B4: حرحوز عيسى | C4: أستاذ التعليم الأساسي | D4: متزوج | E4: 3 | G4: 1 | I4: 2394609/19 | J4: 11 | K4: =IF(J4="","",VLOOKUP(J4,'الشبكة الاستدلالية للمرتبات'!A:C,3,0)) -> 498 | L4: =MATCH(K4,'الشبكة الاستدلالية للمرتبات'!C2:C19,0) -> 12 | M4: 747 | N4: 10 | O4: =MATCH(N4,'الشبكة الاستدلالية للمرتبات'!C2:P2,0) -> 12 | P4: =INDEX('الشبكة الاستدلالية للمرتبات'!C2:P19,L4,O4) -> 249 | Q4: =VLOOKUP(J4,'الشبكة الاستدلالية للمرتبات'!R3:V19,5,0) -> 1500 | S4: =VLOOKUP(J4,'الشبكة الاستدلالية للمرتبات'!R3:S19,2,0) -> 2500 | T4: =VLOOKUP(J4,'الشبكة الاستدلالية للمرتبات'!R3:X19,7,0) -> 0 | U4: =VLOOKUP(J4,'الشبكة الاستدلالية للمرتبات'!R3:T19,3,0) -> 40 | V4: =VLOOKUP(J4,'الشبكة الاستدلالية للمرتبات'!R3:U19,4,0) -> 0 | W4: =VLOOKUP(J4,'الشبكة الاستدلالية للمرتبات'!R3:W19,6,0) -> 15
A5: 4 | B5: حرحوز لخضر | C5: أستاذ رئيسي للتعليم المتوسط | D5: متزوج | E5: 1 | G5: 1 | I5: 6275828/59 | J5: 13 | K5: =IF(J5="","",VLOOKUP(J5,'الشبكة الاستدلالية للمرتبات'!A:C,3,0)) -> 578 | L5: =MATCH(K5,'الشبكة الاستدلالية للمرتبات'!C2:C19,0) -> 14 | M5: 665 | N5: 3 | O5: =MATCH(N5,'الشبكة الاستدلالية للمرتبات'!C2:P2,0) -> 5 | P5: =INDEX('الشبكة الاستدلالية للمرتبات'!C2:P19,L5,O5) -> 87 | Q5: =VLOOKUP(J5,'الشبكة الاستدلالية للمرتبات'!R3:V19,5,0) -> 1500 | S5: =VLOOKUP(J5,'الشبكة الاستدلالية للمرتبات'!R3:S19,2,0) -> 3000 | T5: =VLOOKUP(J5,'الشبكة الاستدلالية للمرتبات'!R3:X19,7,0) -> 1000 | U5: =VLOOKUP(J5,'الشبكة الاستدلالية للمرتبات'!R3:T19,3,0) -> 45 | V5: =VLOOKUP(J5,'الشبكة الاستدلالية للمرتبات'!R3:U19,4,0) -> 10 | W5: =VLOOKUP(J5,'الشبكة الاستدلالية للمرتبات'!R3:W19,6,0) -> 15 | Y5: 1
A6: 5 | B6: حرحوز نبيل | C6: أستاذ في التعليم المتوسط | D6: عازب | I6: 11715250/64 | J6: 12 | K6: =IF(J6="","",VLOOKUP(J6,'الشبكة الاستدلالية للمرتبات'!A:C,3,0)) -> 537 | L6: =MATCH(K6,'الشبكة الاستدلالية للمرتبات'!C2:C19,0) -> 13 | M6: 537 | O6: =MATCH(N6,'الشبكة الاستدلالية للمرتبات'!C2:P2,0) -> 2 | P6: =INDEX('الشبكة الاستدلالية للمرتبات'!C2:P19,L6,O6) -> 0 | Q6: =VLOOKUP(J6,'الشبكة الاستدلالية للمرتبات'!R3:V19,5,0) -> 1500 | S6: =VLOOKUP(J6,'الشبكة الاستدلالية للمرتبات'!R3:S19,2,0) -> 2500 | T6: =VLOOKUP(J6,'الشبكة الاستدلالية للمرتبات'!R3:X19,7,0) -> 1000 | U6: =VLOOKUP(J6,'الشبكة الاستدلالية للمرتبات'!R3:T19,3,0) -> 40 | V6: =VLOOKUP(J6,'الشبكة الاستدلالية للمرتبات'!R3:U19,4,0) -> 10 | W6: =VLOOKUP(J6,'الشبكة الاستدلالية للمرتبات'!R3:W19,6,0) -> 15
A7: 6 | B7: خبال سعدية | C7: أستاذ في التعليم المتوسط | D7: متزوجة | E7: 2 | G7: 1 | I7: 9388569/33 | J7: 12 | K7: =IF(J7="","",VLOOKUP(J7,'الشبكة الاستدلالية للمرتبات'!A:C,3,0)) -> 537 | L7: =MATCH(K7,'الشبكة الاستدلالية للمرتبات'!C2:C19,0) -> 13 | M7: 591 | N7: 2 | O7: =MATCH(N7,'الشبكة الاستدلالية للمرتبات'!C2:P2,0) -> 4 | P7: =INDEX('الشبكة الاستدلالية للمرتبات'!C2:P19,L7,O7) -> 54 | Q7: =VLOOKUP(J7,'الشبكة الاستدلالية للمرتبات'!R3:V19,5,0) -> 1500 | S7: =VLOOKUP(J7,'الشبكة الاستدلالية للمرتبات'!R3:S19,2,0) -> 2500 | T7: =VLOOKUP(J7,'الشبكة الاستدلالية للمرتبات'!R3:X19,7,0) -> 1000 | U7: =VLOOKUP(J7,'الشبكة الاستدلالية للمرتبات'!R3:T19,3,0) -> 40 | V7: =VLOOKUP(J7,'الشبكة الاستدلالية للمرتبات'!R3:U19,4,0) -> 10 | W7: =VLOOKUP(J7,'الشبكة الاستدلالية للمرتبات'!R3:W19,6,0) -> 15
A8: 7 | B8: دبوسي نوال | C8: أستاذ في التعليم المتوسط | D8: عازبة | I8: 6162574/12 | J8: 12 | K8: =IF(J8="","",VLOOKUP(J8,'الشبكة الاستدلالية للمرتبات'!A:C,3,0)) -> 537 | L8: =MATCH(K8,'الشبكة الاستدلالية للمرتبات'!C2:C19,0) -> 13 | M8: 537 | O8: =MATCH(N8,'الشبكة الاستدلالية للمرتبات'!C2:P2,0) -> 2 | P8: =INDEX('الشبكة الاستدلالية للمرتبات'!C2:P19,L8,O8) -> 0 | Q8: =VLOOKUP(J8,'الشبكة الاستدلالية للمرتبات'!R3:V19,5,0) -> 1500 | S8: =VLOOKUP(J8,'الشبكة الاستدلالية للمرتبات'!R3:S19,2,0) -> 2500 | T8: =VLOOKUP(J8,'الشبكة الاستدلالية للمرتبات'!R3:X19,7,0) -> 1000 | U8: =VLOOKUP(J8,'الشبكة الاستدلالية للمرتبات'!R3:T19,3,0) -> 40 | V8: =VLOOKUP(J8,'الشبكة الاستدلالية للمرتبات'!R3:U19,4,0) -> 10 | W8: =VLOOKUP(J8,'الشبكة الاستدلالية للمرتبات'!R3:W19,6,0) -> 15 | Y8: 1
A9: 8 | B9: دوسن فطيمة زهرة | C9: أستاذ في التعليم المتوسط | D9: عازبة | I9: 9391377/77 | J9: 12 | K9: =IF(J9="","",VLOOKUP(J9,'الشبكة الاستدلالية للمرتبات'!A:C,3,0)) -> 537 | L9: =MATCH(K9,'الشبكة الاستدلالية للمرتبات'!C2:C19,0) -> 13 | M9: 564 | N9: 1 | O9: =MATCH(N9,'الشبكة الاستدلالية للمرتبات'!C2:P2,0) -> 3 | P9: =INDEX('الشبكة الاستدلالية للمرتبات'!C2:P19,L9,O9) -> 27 | Q9: =VLOOKUP(J9,'الشبكة الاستدلالية للمرتبات'!R3:V19,5,0) -> 1500 | S9: =VLOOKUP(J9,'الشبكة الاستدلالية للمرتبات'!R3:S19,2,0) -> 2500 | T9: =VLOOKUP(J9,'الشبكة الاستدلالية للمرتبات'!R3:X19,7,0) -> 1000 | U9: =VLOOKUP(J9,'الشبكة الاستدلالية للمرتبات'!R3:T19,3,0) -> 40 | V9: =VLOOKUP(J9,'الشبكة الاستدلالية للمرتبات'!R3:U19,4,0) -> 10 | W9: =VLOOKUP(J9,'الشبكة الاستدلالية للمرتبات'!R3:W19,6,0) -> 15
A10: 9 | B10: زايدي صخرية | C10: أستاذ في التعليم المتوسط | D10: متزوجة | I10: 6400605/52 | J10: 12 | K10: =IF(J10="","",VLOOKUP(J10,'الشبكة الاستدلالية للمرتبات'!A:C,3,0)) -> 537 | L10: =MATCH(K10,'الشبكة الاستدلالية للمرتبات'!C2:C19,0) -> 13 | M10: 591 | N10: 2 | O10: =MATCH(N10,'الشبكة الاستدلالية للمرتبات'!C2:P2,0) -> 4 | P10: =INDEX('الشبكة الاستدلالية للمرتبات'!C2:P19,L10,O10) -> 54 | Q10: =VLOOKUP(J10,'الشبكة الاستدلالية للمرتبات'!R3:V19,5,0) -> 1500 | S10: =VLOOKUP(J10,'الشبكة الاستدلالية للمرتبات'!R3:S19,2,0) -> 2500 | T10: =VLOOKUP(J10,'الشبكة الاستدلالية للمرتبات'!R3:X19,7,0) -> 1000 | U10: =VLOOKUP(J10,'الشبكة الاستدلالية للمرتبات'!R3:T19,3,0) -> 40 | V10: =VLOOKUP(J10,'الشبكة الاستدلالية للمرتبات'!R3:U19,4,0) -> 10 | W10: =VLOOKUP(J10,'الشبكة الاستدلالية للمرتبات'!R3:W19,6,0) -> 15
A11: 10 | B11: زيان لويزة | C11: أستاذ في التعليم المتوسط | D11: عازبة | I11: 9878267/44 | J11: 12 | K11: =IF(J11="","",VLOOKUP(J11,'الشبكة الاستدلالية للمرتبات'!A:C,3,0)) -> 537 | L11: =MATCH(K11,'الشبكة الاستدلالية للمرتبات'!C2:C19,0) -> 13 | M11: 564 | N11: 1 | O11: =MATCH(N11,'الشبكة الاستدلالية للمرتبات'!C2:P2,0) -> 3 | P11: =INDEX('الشبكة الاستدلالية للمرتبات'!C2:P19,L11,O11) -> 27 | Q11: =VLOOKUP(J11,'الشبكة الاستدلالية للمرتبات'!R3:V19,5,0) -> 1500 | S11: =VLOOKUP(J11,'الشبكة الاستدلالية للمرتبات'!R3:S19,2,0) -> 2500 | T11: =VLOOKUP(J11,'الشبكة الاستدلالية للمرتبات'!R3:X19,7,0) -> 1000 | U11: =VLOOKUP(J11,'الشبكة الاستدلالية للمرتبات'!R3:T19,3,0) -> 40 | V11: =VLOOKUP(J11,'الشبكة الاستدلالية للمرتبات'!R3:U19,4,0) -> 10 | W11: =VLOOKUP(J11,'الشبكة الاستدلالية للمرتبات'!R3:W19,6,0) -> 15
A12: 11 | B12: زيواش محمد | C12: أستاذ مكون للتعليم المتوسط | D12: متزوج | E12: 4 | I12: 6160522/65 | J12: 15 | K12: =IF(J12="","",VLOOKUP(J12,'الشبكة الاستدلالية للمرتبات'!A:C,3,0)) -> 666 | L12: =MATCH(K12,'الشبكة الاستدلالية للمرتبات'!C2:C19,0) -> 16 | M12: 833 | N12: 5 | O12: =MATCH(N12,'الشبكة الاستدلالية للمرتبات'!C2:P2,0) -> 7 | P12: =INDEX('الشبكة الاستدلالية للمرتبات'!C2:P19,L12,O12) -> 167 | Q12: =VLOOKUP(J12,'الشبكة الاستدلالية للمرتبات'!R3:V19,5,0) -> 1500 | S12: =VLOOKUP(J12,'الشبكة الاستدلالية للمرتبات'!R3:S19,2,0) -> 3000 | T12: =VLOOKUP(J12,'الشبكة الاستدلالية للمرتبات'!R3:X19,7,0) -> 1000 | U12: =VLOOKUP(J12,'الشبكة الاستدلالية للمرتبات'!R3:T19,3,0) -> 45 | V12: =VLOOKUP(J12,'الشبكة الاستدلالية للمرتبات'!R3:U19,4,0) -> 10 | W12: =VLOOKUP(J12,'الشبكة الاستدلالية للمرتبات'!R3:W19,6,0) -> 15
A13: 12 | B13: سعداوي بلخير | C13: أستاذ مكون للتعليم المتوسط | D13: متزوج | E13: 1 | F13: 1 | G13: 1 | I13: 2117517/49 | J13: 15 | K13: =IF(J13="","",VLOOKUP(J13,'الشبكة الاستدلالية للمرتبات'!A:C,3,0)) -> 666 | L13: =MATCH(K13,'الشبكة الاستدلالية للمرتبات'!C2:C19,0) -> 16 | M13: 999 | N13: 10 | O13: =MATCH(N13,'الشبكة الاستدلالية للمرتبات'!C2:P2,0) -> 12 | P13: =INDEX('الشبكة الاستدلالية للمرتبات'!C2:P19,L13,O13) -> 333 | Q13: =VLOOKUP(J13,'الشبكة الاستدلالية للمرتبات'!R3:V19,5,0) -> 1500 | S13: =VLOOKUP(J13,'الشبكة الاستدلالية للمرتبات'!R3:S19,2,0) -> 3000 | T13: =VLOOKUP(J13,'الشبكة الاستدلالية للمرتبات'!R3:X19,7,0) -> 1000 | U13: =VLOOKUP(J13,'الشبكة الاستدلالية للمرتبات'!R3:T19,3,0) -> 45 | V13: =VLOOKUP(J13,'الشبكة الاستدلالية للمرتبات'!R3:U19,4,0) -> 10 | W13: =VLOOKUP(J13,'الشبكة الاستدلالية للمرتبات'!R3:W19,6,0) -> 15 | Y13: 1
A14: 13 | B14: سويب سميرة | C14: أستاذ رئيسي للتعليم المتوسط | D14: متزوجة | I14: 1643787/27 | J14: 13 | K14: =IF(J14="","",VLOOKUP(J14,'الشبكة الاستدلالية للمرتبات'!A:C,3,0)) -> 578 | L14: =MATCH(K14,'الشبكة الاستدلالية للمرتبات'!C2:C19,0) -> 14 | M14: 751 | N14: 6 | O14: =MATCH(N14,'الشبكة الاستدلالية للمرتبات'!C2:P2,0) -> 8 | P14: =INDEX('الشبكة الاستدلالية للمرتبات'!C2:P19,L14,O14) -> 173 | Q14: =VLOOKUP(J14,'الشبكة الاستدلالية للمرتبات'!R3:V19,5,0) -> 1500 | S14: =VLOOKUP(J14,'الشبكة الاستدلالية للمرتبات'!R3:S19,2,0) -> 3000 | T14: =VLOOKUP(J14,'الشبكة الاستدلالية للمرتبات'!R3:X19,7,0) -> 1000 | U14: =VLOOKUP(J14,'الشبكة الاستدلالية للمرتبات'!R3:T19,3,0) -> 45 | V14: =VLOOKUP(J14,'الشبكة الاستدلالية للمرتبات'!R3:U19,4,0) -> 10 | W14: =VLOOKUP(J14,'الشبكة الاستدلالية للمرتبات'!R3:W19,6,0) -> 15 | Y14: 1
A15: 14 | B15: شريفي ليندة | C15: أستاذ في التعليم المتوسط | D15: متزوجة | I15: 14742197/39 | J15: 12 | K15: =IF(J15="","",VLOOKUP(J15,'الشبكة الاستدلالية للمرتبات'!A:C,3,0)) -> 537 | L15: =MATCH(K15,'الشبكة الاستدلالية للمرتبات'!C2:C19,0) -> 13 | M15: 537 | O15: =MATCH(N15,'الشبكة الاستدلالية للمرتبات'!C2:P2,0) -> 2 | P15: =INDEX('الشبكة الاستدلالية للمرتبات'!C2:P19,L15,O15) -> 0 | Q15: =VLOOKUP(J15,'الشبكة الاستدلالية للمرتبات'!R3:V19,5,0) -> 1500 | S15: =VLOOKUP(J15,'الشبكة الاستدلالية للمرتبات'!R3:S19,2,0) -> 2500 | T15: =VLOOKUP(J15,'الشبكة الاستدلالية للمرتبات'!R3:X19,7,0) -> 1000 | U15: =VLOOKUP(J15,'الشبكة الاستدلالية للمرتبات'!R3:T19,3,0) -> 40 | V15: =VLOOKUP(J15,'الشبكة الاستدلالية للمرتبات'!R3:U19,4,0) -> 10 | W15: =VLOOKUP(J15,'الشبكة الاستدلالية للمرتبات'!R3:W19,6,0) -> 15 | Y15: 1
A16: 15 | B16: فايد عائشة | C16: أستاذ في التعليم المتوسط | D16: متزوجة | I16: 9802485/60 | J16: 12 | K16: =IF(J16="","",VLOOKUP(J16,'الشبكة الاستدلالية للمرتبات'!A:C,3,0)) -> 537 | L16: =MATCH(K16,'الشبكة الاستدلالية للمرتبات'!C2:C19,0) -> 13 | M16: 564 | N16: 1 | O16: =MATCH(N16,'الشبكة الاستدلالية للمرتبات'!C2:P2,0) -> 3 | P16: =INDEX('الشبكة الاستدلالية للمرتبات'!C2:P19,L16,O16) -> 27 | Q16: =VLOOKUP(J16,'الشبكة الاستدلالية للمرتبات'!R3:V19,5,0) -> 1500 | S16: =VLOOKUP(J16,'الشبكة الاستدلالية للمرتبات'!R3:S19,2,0) -> 2500 | T16: =VLOOKUP(J16,'الشبكة الاستدلالية للمرتبات'!R3:X19,7,0) -> 1000 | U16: =VLOOKUP(J16,'الشبكة الاستدلالية للمرتبات'!R3:T19,3,0) -> 40 | V16: =VLOOKUP(J16,'الشبكة الاستدلالية للمرتبات'!R3:U19,4,0) -> 10 | W16: =VLOOKUP(J16,'الشبكة الاستدلالية للمرتبات'!R3:W19,6,0) -> 15
A17: 16 | B17: قاقي عبد الكريم | C17: أستاذ في التعليم المتوسط | D17: عازب | I17: 9388228/91 | J17: 12 | K17: =IF(J17="","",VLOOKUP(J17,'الشبكة الاستدلالية للمرتبات'!A:C,3,0)) -> 537 | L17: =MATCH(K17,'الشبكة الاستدلالية للمرتبات'!C2:C19,0) -> 13 | M17: 537 | O17: =MATCH(N17,'الشبكة الاستدلالية للمرتبات'!C2:P2,0) -> 2 | P17: =INDEX('الشبكة الاستدلالية للمرتبات'!C2:P19,L17,O17) -> 0 | Q17: =VLOOKUP(J17,'الشبكة الاستدلالية للمرتبات'!R3:V19,5,0) -> 1500 | S17: =VLOOKUP(J17,'الشبكة الاستدلالية للمرتبات'!R3:S19,2,0) -> 2500 | T17: =VLOOKUP(J17,'الشبكة الاستدلالية للمرتبات'!R3:X19,7,0) -> 1000 | U17: =VLOOKUP(J17,'الشبكة الاستدلالية للمرتبات'!R3:T19,3,0) -> 40 | V17: =VLOOKUP(J17,'الشبكة الاستدلالية للمرتبات'!R3:U19,4,0) -> 10 | W17: =VLOOKUP(J17,'الشبكة الاستدلالية للمرتبات'!R3:W19,6,0) -> 15
A18: 17 | B18: قانة مريم | C18: أستاذ في التعليم المتوسط | D18: عازبة | I18: 17553365/55 | J18: 12 | K18: =IF(J18="","",VLOOKUP(J18,'الشبكة الاستدلالية للمرتبات'!A:C,3,0)) -> 537 | L18: =MATCH(K18,'الشبكة الاستدلالية للمرتبات'!C2:C19,0) -> 13 | M18: 537 | O18: =MATCH(N18,'الشبكة الاستدلالية للمرتبات'!C2:P2,0) -> 2 | P18: =INDEX('الشبكة الاستدلالية للمرتبات'!C2:P19,L18,O18) -> 0 | Q18: =VLOOKUP(J18,'الشبكة الاستدلالية للمرتبات'!R3:V19,5,0) -> 1500 | S18: =VLOOKUP(J18,'الشبكة الاستدلالية للمرتبات'!R3:S19,2,0) -> 2500 | T18: =VLOOKUP(J18,'الشبكة الاستدلالية للمرتبات'!R3:X19,7,0) -> 1000 | U18: =VLOOKUP(J18,'الشبكة الاستدلالية للمرتبات'!R3:T19,3,0) -> 40 | V18: =VLOOKUP(J18,'الشبكة الاستدلالية للمرتبات'!R3:U19,4,0) -> 10 | W18: =VLOOKUP(J18,'الشبكة الاستدلالية للمرتبات'!R3:W19,6,0) -> 15
A19: 18 | B19: لباشي محمد | C19: أستاذ رئيسي للتعليم المتوسط | D19: متزوج | E19: 3 | G19: 1 | I19: 6274485/46 | J19: 13 | K19: =IF(J19="","",VLOOKUP(J19,'الشبكة الاستدلالية للمرتبات'!A:C,3,0)) -> 578 | L19: =MATCH(K19,'الشبكة الاستدلالية للمرتبات'!C2:C19,0) -> 14 | M19: 665 | N19: 3 | O19: =MATCH(N19,'الشبكة الاستدلالية للمرتبات'!C2:P2,0) -> 5 | P19: =INDEX('الشبكة الاستدلالية للمرتبات'!C2:P19,L19,O19) -> 87 | Q19: =VLOOKUP(J19,'الشبكة الاستدلالية للمرتبات'!R3:V19,5,0) -> 1500 | S19: =VLOOKUP(J19,'الشبكة الاستدلالية للمرتبات'!R3:S19,2,0) -> 3000 | T19: =VLOOKUP(J19,'الشبكة الاستدلالية للمرتبات'!R3:X19,7,0) -> 1000 | U19: =VLOOKUP(J19,'الشبكة الاستدلالية للمرتبات'!R3:T19,3,0) -> 45 | V19: =VLOOKUP(J19,'الشبكة الاستدلالية للمرتبات'!R3:U19,4,0) -> 10 | W19: =VLOOKUP(J19,'الشبكة الاستدلالية للمرتبات'!R3:W19,6,0) -> 15
A20: 19 | B20: لبزة يمينة | C20: أستاذ في التعليم المتوسط | D20: متزوجة | I20: 9398669/47 | J20: 12 | K20: =IF(J20="","",VLOOKUP(J20,'الشبكة الاستدلالية للمرتبات'!A:C,3,0)) -> 537 | L20: =MATCH(K20,'الشبكة الاستدلالية للمرتبات'!C2:C19,0) -> 13 | M20: 591 | N20: 2 | O20: =MATCH(N20,'الشبكة الاستدلالية للمرتبات'!C2:P2,0) -> 4 | P20: =INDEX('الشبكة الاستدلالية للمرتبات'!C2:P19,L20,O20) -> 54 | Q20: =VLOOKUP(J20,'الشبكة الاستدلالية للمرتبات'!R3:V19,5,0) -> 1500 | S20: =VLOOKUP(J20,'الشبكة الاستدلالية للمرتبات'!R3:S19,2,0) -> 2500 | T20: =VLOOKUP(J20,'الشبكة الاستدلالية للمرتبات'!R3:X19,7,0) -> 1000 | U20: =VLOOKUP(J20,'الشبكة الاستدلالية للمرتبات'!R3:T19,3,0) -> 40 | V20: =VLOOKUP(J20,'الشبكة الاستدلالية للمرتبات'!R3:U19,4,0) -> 10 | W20: =VLOOKUP(J20,'الشبكة الاستدلالية للمرتبات'!R3:W19,6,0) -> 15
A21: 20 | B21: لعيفاوي عبد الرزاق | C21: أستاذ مكون للتعليم المتوسط | D21: متزوج | E21: 4 | I21: 08923/32 | J21: 15 | K21: =IF(J21="","",VLOOKUP(J21,'الشبكة الاستدلالية للمرتبات'!A:C,3,0)) -> 666 | L21: =MATCH(K21,'الشبكة الاستدلالية للمرتبات'!C2:C19,0) -> 16 | M21: 833 | N21: 5 | O21: =MATCH(N21,'الشبكة الاستدلالية للمرتبات'!C2:P2,0) -> 7 | P21: =INDEX('الشبكة الاستدلالية للمرتبات'!C2:P19,L21,O21) -> 167 | Q21: =VLOOKUP(J21,'الشبكة الاستدلالية للمرتبات'!R3:V19,5,0) -> 1500 | S21: =VLOOKUP(J21,'الشبكة الاستدلالية للمرتبات'!R3:S19,2,0) -> 3000 | T21: =VLOOKUP(J21,'الشبكة الاستدلالية للمرتبات'!R3:X19,7,0) -> 1000 | U21: =VLOOKUP(J21,'الشبكة الاستدلالية للمرتبات'!R3:T19,3,0) -> 45 | V21: =VLOOKUP(J21,'الشبكة الاستدلالية للمرتبات'!R3:U19,4,0) -> 10 | W21: =VLOOKUP(J21,'الشبكة الاستدلالية للمرتبات'!R3:W19,6,0) -> 15
A22: 21 | B22: منصور سميحة | C22: أستاذ في التعليم المتوسط | D22: عازبة | I22: 10519992/34 | J22: 12 | K22: =IF(J22="","",VLOOKUP(J22,'الشبكة الاستدلالية للمرتبات'!A:C,3,0)) -> 537 | L22: =MATCH(K22,'الشبكة الاستدلالية للمرتبات'!C2:C19,0) -> 13 | M22: 537 | O22: =MATCH(N22,'الشبكة الاستدلالية للمرتبات'!C2:P2,0) -> 2 | P22: =INDEX('الشبكة الاستدلالية للمرتبات'!C2:P19,L22,O22) -> 0 | Q22: =VLOOKUP(J22,'الشبكة الاستدلالية للمرتبات'!R3:V19,5,0) -> 1500 | S22: =VLOOKUP(J22,'الشبكة الاستدلالية للمرتبات'!R3:S19,2,0) -> 2500 | T22: =VLOOKUP(J22,'الشبكة الاستدلالية للمرتبات'!R3:X19,7,0) -> 1000 | U22: =VLOOKUP(J22,'الشبكة الاستدلالية للمرتبات'!R3:T19,3,0) -> 40 | V22: =VLOOKUP(J22,'الشبكة الاستدلالية للمرتبات'!R3:U19,4,0) -> 10 | W22: =VLOOKUP(J22,'الشبكة الاستدلالية للمرتبات'!R3:W19,6,0) -> 15
A23: 22 | B23: معمري شيماء | C23: أستاذ في التعليم المتوسط | D23: عازبة | I23: 17529112/24 | J23: 12 | K23: =IF(J23="","",VLOOKUP(J23,'الشبكة الاستدلالية للمرتبات'!A:C,3,0)) -> 537 | L23: =MATCH(K23,'الشبكة الاستدلالية للمرتبات'!C2:C19,0) -> 13 | M23: 537 | O23: =MATCH(N23,'الشبكة الاستدلالية للمرتبات'!C2:P2,0) -> 2 | P23: =INDEX('الشبكة الاستدلالية للمرتبات'!C2:P19,L23,O23) -> 0 | Q23: =VLOOKUP(J23,'الشبكة الاستدلالية للمرتبات'!R3:V19,5,0) -> 1500 | S23: =VLOOKUP(J23,'الشبكة الاستدلالية للمرتبات'!R3:S19,2,0) -> 2500 | T23: =VLOOKUP(J23,'الشبكة الاستدلالية للمرتبات'!R3:X19,7,0) -> 1000 | U23: =VLOOKUP(J23,'الشبكة الاستدلالية للمرتبات'!R3:T19,3,0) -> 40 | V23: =VLOOKUP(J23,'الشبكة الاستدلالية للمرتبات'!R3:U19,4,0) -> 10 | W23: =VLOOKUP(J23,'الشبكة الاستدلالية للمرتبات'!R3:W19,6,0) -> 15
A24: 23 | K24: =IF(J24="","",VLOOKUP(J24,'الشبكة الاستدلالية للمرتبات'!A:C,3,0)) ->  | L24: =MATCH(K24,'الشبكة الاستدلالية للمرتبات'!C2:C19,0) ->  | O24: =MATCH(N24,'الشبكة الاستدلالية للمرتبات'!C2:P2,0) -> 2 | P24: =INDEX('الشبكة الاستدلالية للمرتبات'!C2:P19,L24,O24) ->  | Q24: =VLOOKUP(J24,'الشبكة الاستدلالية للمرتبات'!R3:V19,5,0) ->  | S24: =VLOOKUP(J24,'الشبكة الاستدلالية للمرتبات'!R3:S19,2,0) ->  | T24: =VLOOKUP(J24,'الشبكة الاستدلالية للمرتبات'!R3:X19,7,0) ->  | U24: =VLOOKUP(J24,'الشبكة الاستدلالية للمرتبات'!R3:T19,3,0) ->  | V24: =VLOOKUP(J24,'الشبكة الاستدلالية للمرتبات'!R3:U19,4,0) ->  | W24: =VLOOKUP(J24,'الشبكة الاستدلالية للمرتبات'!R3:W19,6,0) -> 
A25: 24 | K25: =IF(J25="","",VLOOKUP(J25,'الشبكة الاستدلالية للمرتبات'!A:C,3,0)) ->  | L25: =MATCH(K25,'الشبكة الاستدلالية للمرتبات'!C2:C19,0) ->  | O25: =MATCH(N25,'الشبكة الاستدلالية للمرتبات'!C2:P2,0) -> 2 | P25: =INDEX('الشبكة الاستدلالية للمرتبات'!C2:P19,L25,O25) ->  | Q25: =VLOOKUP(J25,'الشبكة الاستدلالية للمرتبات'!R3:V19,5,0) ->  | S25: =VLOOKUP(J25,'الشبكة الاستدلالية للمرتبات'!R3:S19,2,0) ->  | T25: =VLOOKUP(J25,'الشبكة الاستدلالية للمرتبات'!R3:X19,7,0) ->  | U25: =VLOOKUP(J25,'الشبكة الاستدلالية للمرتبات'!R3:T19,3,0) ->  | V25: =VLOOKUP(J25,'الشبكة الاستدلالية للمرتبات'!R3:U19,4,0) ->  | W25: =VLOOKUP(J25,'الشبكة الاستدلالية للمرتبات'!R3:W19,6,0) -> 
A26: 25 | K26: =IF(J26="","",VLOOKUP(J26,'الشبكة الاستدلالية للمرتبات'!A:C,3,0)) ->  | L26: =MATCH(K26,'الشبكة الاستدلالية للمرتبات'!C2:C19,0) ->  | O26: =MATCH(N26,'الشبكة الاستدلالية للمرتبات'!C2:P2,0) -> 2 | P26: =INDEX('الشبكة الاستدلالية للمرتبات'!C2:P19,L26,O26) ->  | Q26: =VLOOKUP(J26,'الشبكة الاستدلالية للمرتبات'!R3:V19,5,0) ->  | S26: =VLOOKUP(J26,'الشبكة الاستدلالية للمرتبات'!R3:S19,2,0) ->  | T26: =VLOOKUP(J26,'الشبكة الاستدلالية للمرتبات'!R3:X19,7,0) ->  | U26: =VLOOKUP(J26,'الشبكة الاستدلالية للمرتبات'!R3:T19,3,0) ->  | V26: =VLOOKUP(J26,'الشبكة الاستدلالية للمرتبات'!R3:U19,4,0) ->  | W26: =VLOOKUP(J26,'الشبكة الاستدلالية للمرتبات'!R3:W19,6,0) -> 
A27: 26 | K27: =IF(J27="","",VLOOKUP(J27,'الشبكة الاستدلالية للمرتبات'!A:C,3,0)) ->  | L27: =MATCH(K27,'الشبكة الاستدلالية للمرتبات'!C2:C19,0) ->  | O27: =MATCH(N27,'الشبكة الاستدلالية للمرتبات'!C2:P2,0) -> 2 | P27: =INDEX('الشبكة الاستدلالية للمرتبات'!C2:P19,L27,O27) ->  | Q27: =VLOOKUP(J27,'الشبكة الاستدلالية للمرتبات'!R3:V19,5,0) ->  | S27: =VLOOKUP(J27,'الشبكة الاستدلالية للمرتبات'!R3:S19,2,0) ->  | T27: =VLOOKUP(J27,'الشبكة الاستدلالية للمرتبات'!R3:X19,7,0) ->  | U27: =VLOOKUP(J27,'الشبكة الاستدلالية للمرتبات'!R3:T19,3,0) ->  | V27: =VLOOKUP(J27,'الشبكة الاستدلالية للمرتبات'!R3:U19,4,0) ->  | W27: =VLOOKUP(J27,'الشبكة الاستدلالية للمرتبات'!R3:W19,6,0) -> 
A28: 27 | K28: =IF(J28="","",VLOOKUP(J28,'الشبكة الاستدلالية للمرتبات'!A:C,3,0)) ->  | L28: =MATCH(K28,'الشبكة الاستدلالية للمرتبات'!C2:C19,0) ->  | O28: =MATCH(N28,'الشبكة الاستدلالية للمرتبات'!C2:P2,0) -> 2 | P28: =INDEX('الشبكة الاستدلالية للمرتبات'!C2:P19,L28,O28) ->  | Q28: =VLOOKUP(J28,'الشبكة الاستدلالية للمرتبات'!R3:V19,5,0) ->  | S28: =VLOOKUP(J28,'الشبكة الاستدلالية للمرتبات'!R3:S19,2,0) ->  | T28: =VLOOKUP(J28,'الشبكة الاستدلالية للمرتبات'!R3:X19,7,0) ->  | U28: =VLOOKUP(J28,'الشبكة الاستدلالية للمرتبات'!R3:T19,3,0) ->  | V28: =VLOOKUP(J28,'الشبكة الاستدلالية للمرتبات'!R3:U19,4,0) ->  | W28: =VLOOKUP(J28,'الشبكة الاستدلالية للمرتبات'!R3:W19,6,0) -> 
A29: 28 | K29: =IF(J29="","",VLOOKUP(J29,'الشبكة الاستدلالية للمرتبات'!A:C,3,0)) ->  | L29: =MATCH(K29,'الشبكة الاستدلالية للمرتبات'!C2:C19,0) ->  | O29: =MATCH(N29,'الشبكة الاستدلالية للمرتبات'!C2:P2,0) -> 2 | P29: =INDEX('الشبكة الاستدلالية للمرتبات'!C2:P19,L29,O29) ->  | Q29: =VLOOKUP(J29,'الشبكة الاستدلالية للمرتبات'!R3:V19,5,0) ->  | S29: =VLOOKUP(J29,'الشبكة الاستدلالية للمرتبات'!R3:S19,2,0) ->  | T29: =VLOOKUP(J29,'الشبكة الاستدلالية للمرتبات'!R3:X19,7,0) ->  | U29: =VLOOKUP(J29,'الشبكة الاستدلالية للمرتبات'!R3:T19,3,0) ->  | V29: =VLOOKUP(J29,'الشبكة الاستدلالية للمرتبات'!R3:U19,4,0) ->  | W29: =VLOOKUP(J29,'الشبكة الاستدلالية للمرتبات'!R3:W19,6,0) -> 
A30: 29 | K30: =IF(J30="","",VLOOKUP(J30,'الشبكة الاستدلالية للمرتبات'!A:C,3,0)) ->  | L30: =MATCH(K30,'الشبكة الاستدلالية للمرتبات'!C2:C19,0) ->  | O30: =MATCH(N30,'الشبكة الاستدلالية للمرتبات'!C2:P2,0) -> 2 | P30: =INDEX('الشبكة الاستدلالية للمرتبات'!C2:P19,L30,O30) ->  | Q30: =VLOOKUP(J30,'الشبكة الاستدلالية للمرتبات'!R3:V19,5,0) ->  | S30: =VLOOKUP(J30,'الشبكة الاستدلالية للمرتبات'!R3:S19,2,0) ->  | T30: =VLOOKUP(J30,'الشبكة الاستدلالية للمرتبات'!R3:X19,7,0) ->  | U30: =VLOOKUP(J30,'الشبكة الاستدلالية للمرتبات'!R3:T19,3,0) ->  | V30: =VLOOKUP(J30,'الشبكة الاستدلالية للمرتبات'!R3:U19,4,0) ->  | W30: =VLOOKUP(J30,'الشبكة الاستدلالية للمرتبات'!R3:W19,6,0) -> 
A31: 30 | K31: =IF(J31="","",VLOOKUP(J31,'الشبكة الاستدلالية للمرتبات'!A:C,3,0)) ->  | L31: =MATCH(K31,'الشبكة الاستدلالية للمرتبات'!C2:C19,0) ->  | O31: =MATCH(N31,'الشبكة الاستدلالية للمرتبات'!C2:P2,0) -> 2 | P31: =INDEX('الشبكة الاستدلالية للمرتبات'!C2:P19,L31,O31) ->  | Q31: =VLOOKUP(J31,'الشبكة الاستدلالية للمرتبات'!R3:V19,5,0) ->  | S31: =VLOOKUP(J31,'الشبكة الاستدلالية للمرتبات'!R3:S19,2,0) ->  | T31: =VLOOKUP(J31,'الشبكة الاستدلالية للمرتبات'!R3:X19,7,0) ->  | U31: =VLOOKUP(J31,'الشبكة الاستدلالية للمرتبات'!R3:T19,3,0) ->  | V31: =VLOOKUP(J31,'الشبكة الاستدلالية للمرتبات'!R3:U19,4,0) ->  | W31: =VLOOKUP(J31,'الشبكة الاستدلالية للمرتبات'!R3:W19,6,0) -> 
A32: 31 | B32: بغدادي وسيلة | C32: أستاذ المدرسة الابتدائية | D32: عازبة | I32: 6567734/75 | J32: 11 | K32: =IF(J32="","",VLOOKUP(J32,'الشبكة الاستدلالية للمرتبات'!A:C,3,0)) -> 498 | L32: =MATCH(K32,'الشبكة الاستدلالية للمرتبات'!C2:C19,0) -> 12 | M32: 498 | O32: =MATCH(N32,'الشبكة الاستدلالية للمرتبات'!C2:P2,0) -> 2 | P32: =INDEX('الشبكة الاستدلالية للمرتبات'!C2:P19,L32,O32) -> 0 | Q32: =VLOOKUP(J32,'الشبكة الاستدلالية للمرتبات'!R3:V19,5,0) -> 1500 | S32: =VLOOKUP(J32,'الشبكة الاستدلالية للمرتبات'!R3:S19,2,0) -> 2500 | T32: =VLOOKUP(J32,'الشبكة الاستدلالية للمرتبات'!R3:X19,7,0) -> 0 | U32: =VLOOKUP(J32,'الشبكة الاستدلالية للمرتبات'!R3:T19,3,0) -> 40 | V32: =VLOOKUP(J32,'الشبكة الاستدلالية للمرتبات'!R3:U19,4,0) -> 0 | W32: =VLOOKUP(J32,'الشبكة الاستدلالية للمرتبات'!R36:W49,6,0) -> 
A33: 32 | B33: بلخضر بدرية | C33: أستاذ المدرسة الابتدائية | D33: عازبة | I33: 6398352/66 | J33: 11 | K33: =IF(J33="","",VLOOKUP(J33,'الشبكة الاستدلالية للمرتبات'!A:C,3,0)) -> 498 | L33: =MATCH(K33,'الشبكة الاستدلالية للمرتبات'!C2:C19,0) -> 12 | M33: 523 | N33: 1 | O33: =MATCH(N33,'الشبكة الاستدلالية للمرتبات'!C2:P2,0) -> 3 | P33: =INDEX('الشبكة الاستدلالية للمرتبات'!C2:P19,L33,O33) -> 25 | Q33: =VLOOKUP(J33,'الشبكة الاستدلالية للمرتبات'!R3:V19,5,0) -> 1500 | S33: =VLOOKUP(J33,'الشبكة الاستدلالية للمرتبات'!R3:S19,2,0) -> 2500 | T33: =VLOOKUP(J33,'الشبكة الاستدلالية للمرتبات'!R3:X19,7,0) -> 0 | U33: =VLOOKUP(J33,'الشبكة الاستدلالية للمرتبات'!R3:T19,3,0) -> 40 | V33: =VLOOKUP(J33,'الشبكة الاستدلالية للمرتبات'!R3:U19,4,0) -> 0 | W33: =VLOOKUP(J33,'الشبكة الاستدلالية للمرتبات'!R3:W19,6,0) -> 15
A34: 33 | B34: حرحوز هجيرة | C34: أستاذ المدرسة الابتدائية | D34: متزوجة | I34: 9292759/97 | J34: 11 | K34: =IF(J34="","",VLOOKUP(J34,'الشبكة الاستدلالية للمرتبات'!A:C,3,0)) -> 498 | L34: =MATCH(K34,'الشبكة الاستدلالية للمرتبات'!C2:C19,0) -> 12 | M34: =K34+P34 -> 523 | N34: 1 | O34: =MATCH(N34,'الشبكة الاستدلالية للمرتبات'!C2:P2,0) -> 3 | P34: =INDEX('الشبكة الاستدلالية للمرتبات'!C2:P19,L34,O34) -> 25 | Q34: =VLOOKUP(J34,'الشبكة الاستدلالية للمرتبات'!R3:V19,5,0) -> 1500 | S34: =VLOOKUP(J34,'الشبكة الاستدلالية للمرتبات'!R3:S19,2,0) -> 2500 | T34: =VLOOKUP(J34,'الشبكة الاستدلالية للمرتبات'!R3:X19,7,0) -> 0 | U34: =VLOOKUP(J34,'الشبكة الاستدلالية للمرتبات'!R3:T19,3,0) -> 40 | V34: =VLOOKUP(J34,'الشبكة الاستدلالية للمرتبات'!R3:U19,4,0) -> 0 | W34: =VLOOKUP(J34,'الشبكة الاستدلالية للمرتبات'!R3:W19,6,0) -> 15
A35: 34 | B35: داودي زهرة | C35: أستاذ المدرسة الابتدائية | D35: عازبة | I35: 14898530/96 | J35: 11 | K35: =IF(J35="","",VLOOKUP(J35,'الشبكة الاستدلالية للمرتبات'!A:C,3,0)) -> 498 | L35: =MATCH(K35,'الشبكة الاستدلالية للمرتبات'!C2:C19,0) -> 12 | M35: 498 | O35: =MATCH(N35,'الشبكة الاستدلالية للمرتبات'!C2:P2,0) -> 2 | P35: =INDEX('الشبكة الاستدلالية للمرتبات'!C2:P19,L35,O35) -> 0 | Q35: =VLOOKUP(J35,'الشبكة الاستدلالية للمرتبات'!R3:V19,5,0) -> 1500 | S35: =VLOOKUP(J35,'الشبكة الاستدلالية للمرتبات'!R3:S19,2,0) -> 2500 | T35: =VLOOKUP(J35,'الشبكة الاستدلالية للمرتبات'!R3:X19,7,0) -> 0 | U35: =VLOOKUP(J35,'الشبكة الاستدلالية للمرتبات'!R3:T19,3,0) -> 40 | V35: =VLOOKUP(J35,'الشبكة الاستدلالية للمرتبات'!R3:U19,4,0) -> 0 | W35: =VLOOKUP(J35,'الشبكة الاستدلالية للمرتبات'!R3:W19,6,0) -> 15
A36: 35 | B36: بلولة سامية | C36: أستاذ رئيسي للمدرسة الابتدائية | D36: متزوجة | I36: 6469679/14 | J36: 12 | K36: =IF(J36="","",VLOOKUP(J36,'الشبكة الاستدلالية للمرتبات'!A:C,3,0)) -> 537 | L36: =MATCH(K36,'الشبكة الاستدلالية للمرتبات'!C2:C19,0) -> 13 | M36: 644 | N36: 4 | O36: =MATCH(N36,'الشبكة الاستدلالية للمرتبات'!C2:P2,0) -> 6 | P36: =INDEX('الشبكة الاستدلالية للمرتبات'!C2:P19,L36,O36) -> 107 | Q36: =VLOOKUP(J36,'الشبكة الاستدلالية للمرتبات'!R3:V19,5,0) -> 1500 | S36: =VLOOKUP(J36,'الشبكة الاستدلالية للمرتبات'!R3:S19,2,0) -> 2500 | T36: =VLOOKUP(J36,'الشبكة الاستدلالية للمرتبات'!R3:X19,7,0) -> 1000 | U36: =VLOOKUP(J36,'الشبكة الاستدلالية للمرتبات'!R3:T19,3,0) -> 40 | V36: =VLOOKUP(J36,'الشبكة الاستدلالية للمرتبات'!R3:U19,4,0) -> 10 | W36: =VLOOKUP(J36,'الشبكة الاستدلالية للمرتبات'!R3:W19,6,0) -> 15
A37: 36 | B37: بن حامد صالح | C37: أستاذ المدرسة الابتدائية | D37: متزوج | E37: 2 | G37: 1 | I37: 6279137/46 | J37: 11 | K37: =IF(J37="","",VLOOKUP(J37,'الشبكة الاستدلالية للمرتبات'!A:C,3,0)) -> 498 | L37: =MATCH(K37,'الشبكة الاستدلالية للمرتبات'!C2:C19,0) -> 12 | M37: 498 | O37: =MATCH(N37,'الشبكة الاستدلالية للمرتبات'!C2:P2,0) -> 2 | P37: =INDEX('الشبكة الاستدلالية للمرتبات'!C2:P19,L37,O37) -> 0 | Q37: =VLOOKUP(J37,'الشبكة الاستدلالية للمرتبات'!R3:V19,5,0) -> 1500 | S37: =VLOOKUP(J37,'الشبكة الاستدلالية للمرتبات'!R3:S19,2,0) -> 2500 | T37: =VLOOKUP(J37,'الشبكة الاستدلالية للمرتبات'!R3:X19,7,0) -> 0 | U37: =VLOOKUP(J37,'الشبكة الاستدلالية للمرتبات'!R3:T19,3,0) -> 40 | V37: =VLOOKUP(J37,'الشبكة الاستدلالية للمرتبات'!R3:U19,4,0) -> 0 | W37: =VLOOKUP(J37,'الشبكة الاستدلالية للمرتبات'!R3:W19,6,0) -> 15
A38: 37 | B38: بوحملة شريف | C38: أستاذ المدرسة الابتدائية | D38: عازب | I38: 6618282/38 | J38: 11 | K38: =IF(J38="","",VLOOKUP(J38,'الشبكة الاستدلالية للمرتبات'!A:C,3,0)) -> 498 | L38: =MATCH(K38,'الشبكة الاستدلالية للمرتبات'!C2:C19,0) -> 12 | M38: 498 | O38: =MATCH(N38,'الشبكة الاستدلالية للمرتبات'!C2:P2,0) -> 2 | P38: =INDEX('الشبكة الاستدلالية للمرتبات'!C2:P19,L38,O38) -> 0 | Q38: =VLOOKUP(J38,'الشبكة الاستدلالية للمرتبات'!R3:V19,5,0) -> 1500 | S38: =VLOOKUP(J38,'الشبكة الاستدلالية للمرتبات'!R3:S19,2,0) -> 2500 | T38: =VLOOKUP(J38,'الشبكة الاستدلالية للمرتبات'!R3:X19,7,0) -> 0 | U38: =VLOOKUP(J38,'الشبكة الاستدلالية للمرتبات'!R3:T19,3,0) -> 40 | V38: =VLOOKUP(J38,'الشبكة الاستدلالية للمرتبات'!R3:U19,4,0) -> 0 | W38: =VLOOKUP(J38,'الشبكة الاستدلالية للمرتبات'!R3:W19,6,0) -> 15 | Y38: 1
A39: 38 | B39: بوطيبة حنان | C39: أستاذ رئيسي للمدرسة الابتدائية | D39: متزوجة | I39: 1014878/18 | J39: 12 | K39: =IF(J39="","",VLOOKUP(J39,'الشبكة الاستدلالية للمرتبات'!A:C,3,0)) -> 537 | L39: =MATCH(K39,'الشبكة الاستدلالية للمرتبات'!C2:C19,0) -> 13 | M39: 564 | N39: 1 | O39: =MATCH(N39,'الشبكة الاستدلالية للمرتبات'!C2:P2,0) -> 3 | P39: =INDEX('الشبكة الاستدلالية للمرتبات'!C2:P19,L39,O39) -> 27 | Q39: =VLOOKUP(J39,'الشبكة الاستدلالية للمرتبات'!R3:V19,5,0) -> 1500 | S39: =VLOOKUP(J39,'الشبكة الاستدلالية للمرتبات'!R3:S19,2,0) -> 2500 | T39: =VLOOKUP(J39,'الشبكة الاستدلالية للمرتبات'!R3:X19,7,0) -> 1000 | U39: =VLOOKUP(J39,'الشبكة الاستدلالية للمرتبات'!R3:T19,3,0) -> 40 | V39: =VLOOKUP(J39,'الشبكة الاستدلالية للمرتبات'!R3:U19,4,0) -> 10 | W39: =VLOOKUP(J39,'الشبكة الاستدلالية للمرتبات'!R3:W19,6,0) -> 15
A40: 39 | B40: حلاب بشير | C40: أستاذ مكون للمدرسة الابتدائية | D40: متزوج | E40: 2 | F40: 2 | G40: 1 | I40: 2140291/22 | J40: 14 | K40: =IF(J40="","",VLOOKUP(J40,'الشبكة الاستدلالية للمرتبات'!A:C,3,0)) -> 621 | L40: =MATCH(K40,'الشبكة الاستدلالية للمرتبات'!C2:C19,0) -> 15 | M40: 963 | N40: 11 | O40: =MATCH(N40,'الشبكة الاستدلالية للمرتبات'!C2:P2,0) -> 13 | P40: =INDEX('الشبكة الاستدلالية للمرتبات'!C2:P19,L40,O40) -> 342 | Q40: =VLOOKUP(J40,'الشبكة الاستدلالية للمرتبات'!R3:V19,5,0) -> 1500 | S40: =VLOOKUP(J40,'الشبكة الاستدلالية للمرتبات'!R3:S19,2,0) -> 3000 | T40: =VLOOKUP(J40,'الشبكة الاستدلالية للمرتبات'!R3:X19,7,0) -> 1000 | U40: =VLOOKUP(J40,'الشبكة الاستدلالية للمرتبات'!R3:T19,3,0) -> 45 | V40: =VLOOKUP(J40,'الشبكة الاستدلالية للمرتبات'!R3:U19,4,0) -> 10 | W40: =VLOOKUP(J40,'الشبكة الاستدلالية للمرتبات'!R3:W19,6,0) -> 15 | Y40: 1
A41: 40 | B41: حلاب هدى | C41: أستاذ المدرسة الابتدائية | D41: عازبة | I41: 6595018/49 | J41: 11 | K41: =IF(J41="","",VLOOKUP(J41,'الشبكة الاستدلالية للمرتبات'!A:C,3,0)) -> 498 | L41: =MATCH(K41,'الشبكة الاستدلالية للمرتبات'!C2:C19,0) -> 12 | M41: 523 | N41: 1 | O41: =MATCH(N41,'الشبكة الاستدلالية للمرتبات'!C2:P2,0) -> 3 | P41: =INDEX('الشبكة الاستدلالية للمرتبات'!C2:P19,L41,O41) -> 25 | Q41: =VLOOKUP(J41,'الشبكة الاستدلالية للمرتبات'!R3:V19,5,0) -> 1500 | S41: =VLOOKUP(J41,'الشبكة الاستدلالية للمرتبات'!R3:S19,2,0) -> 2500 | T41: =VLOOKUP(J41,'الشبكة الاستدلالية للمرتبات'!R3:X19,7,0) -> 0 | U41: =VLOOKUP(J41,'الشبكة الاستدلالية للمرتبات'!R3:T19,3,0) -> 40 | V41: =VLOOKUP(J41,'الشبكة الاستدلالية للمرتبات'!R3:U19,4,0) -> 0 | W41: =VLOOKUP(J41,'الشبكة الاستدلالية للمرتبات'!R3:W19,6,0) -> 15
A42: 41 | B42: دبوسي صبرينة | C42: أستاذ المدرسة الابتدائية | D42: عازبة | I42: 6573607/46 | J42: 11 | K42: =IF(J42="","",VLOOKUP(J42,'الشبكة الاستدلالية للمرتبات'!A:C,3,0)) -> 498 | L42: =MATCH(K42,'الشبكة الاستدلالية للمرتبات'!C3:C20,0) -> 11 | M42: =K42+P42 ->  | N42: 1 | O42: =MATCH(N42,'الشبكة الاستدلالية للمرتبات'!C3:P3,0) ->  | P42: =INDEX('الشبكة الاستدلالية للمرتبات'!C3:P20,L42,O42) ->  | Q42: =VLOOKUP(J42,'الشبكة الاستدلالية للمرتبات'!R3:V19,5,0) -> 1500 | S42: =VLOOKUP(J42,'الشبكة الاستدلالية للمرتبات'!R3:S19,2,0) -> 2500 | T42: =VLOOKUP(J42,'الشبكة الاستدلالية للمرتبات'!R3:X19,7,0) -> 0 | U42: =VLOOKUP(J42,'الشبكة الاستدلالية للمرتبات'!R3:T19,3,0) -> 40 | V42: =VLOOKUP(J42,'الشبكة الاستدلالية للمرتبات'!R3:U19,4,0) -> 0 | W42: =VLOOKUP(J42,'الشبكة الاستدلالية للمرتبات'!R3:W19,6,0) -> 15
A43: 42 | B43: ربيعي عمر | C43: أستاذ مكون للمدرسة الابتدائية | D43: عازب | I43: 2557063/96 | J43: 14 | K43: =IF(J43="","",VLOOKUP(J43,'الشبكة الاستدلالية للمرتبات'!A:C,3,0)) -> 621 | L43: =MATCH(K43,'الشبكة الاستدلالية للمرتبات'!C2:C19,0) -> 15 | M43: 807 | N43: 6 | O43: =MATCH(N43,'الشبكة الاستدلالية للمرتبات'!C2:P2,0) -> 8 | P43: =INDEX('الشبكة الاستدلالية للمرتبات'!C2:P19,L43,O43) -> 186 | Q43: =VLOOKUP(J43,'الشبكة الاستدلالية للمرتبات'!R3:V19,5,0) -> 1500 | S43: =VLOOKUP(J43,'الشبكة الاستدلالية للمرتبات'!R3:S19,2,0) -> 3000 | T43: =VLOOKUP(J43,'الشبكة الاستدلالية للمرتبات'!R3:X19,7,0) -> 1000 | U43: =VLOOKUP(J43,'الشبكة الاستدلالية للمرتبات'!R3:T19,3,0) -> 45 | V43: =VLOOKUP(J43,'الشبكة الاستدلالية للمرتبات'!R3:U19,4,0) -> 10 | W43: =VLOOKUP(J43,'الشبكة الاستدلالية للمرتبات'!R3:W19,6,0) -> 15
A44: 43 | B44: زايدي يحي | C44: أستاذ رئيسي للمدرسة الابتدائية | D44: متزوج | E44: 4 | F44: 2 | G44: 1 | I44: 20135944/80 | J44: 12 | K44: =IF(J44="","",VLOOKUP(J44,'الشبكة الاستدلالية للمرتبات'!A:C,3,0)) -> 537 | L44: =MATCH(K44,'الشبكة الاستدلالية للمرتبات'!C2:C19,0) -> 13 | M44: 752 | N44: 8 | O44: =MATCH(N44,'الشبكة الاستدلالية للمرتبات'!C2:P2,0) -> 10 | P44: =INDEX('الشبكة الاستدلالية للمرتبات'!C2:P19,L44,O44) -> 215 | Q44: =VLOOKUP(J44,'الشبكة الاستدلالية للمرتبات'!R3:V19,5,0) -> 1500 | S44: =VLOOKUP(J44,'الشبكة الاستدلالية للمرتبات'!R3:S19,2,0) -> 2500 | T44: =VLOOKUP(J44,'الشبكة الاستدلالية للمرتبات'!R3:X19,7,0) -> 1000 | U44: =VLOOKUP(J44,'الشبكة الاستدلالية للمرتبات'!R3:T19,3,0) -> 40 | V44: =VLOOKUP(J44,'الشبكة الاستدلالية للمرتبات'!R3:U19,4,0) -> 10 | W44: =VLOOKUP(J44,'الشبكة الاستدلالية للمرتبات'!R3:W19,6,0) -> 15 | Y44: 1
A45: 44 | B45: عاشور زهية | C45: أستاذ المدرسة الابتدائية | D45: عازبة | I45: 9887324/19 | J45: 11 | K45: =IF(J45="","",VLOOKUP(J45,'الشبكة الاستدلالية للمرتبات'!A:C,3,0)) -> 498 | L45: =MATCH(K45,'الشبكة الاستدلالية للمرتبات'!C2:C19,0) -> 12 | M45: 498 | O45: =MATCH(N45,'الشبكة الاستدلالية للمرتبات'!C2:P2,0) -> 2 | P45: =INDEX('الشبكة الاستدلالية للمرتبات'!C2:P19,L45,O45) -> 0 | Q45: =VLOOKUP(J45,'الشبكة الاستدلالية للمرتبات'!R3:V19,5,0) -> 1500 | S45: =VLOOKUP(J45,'الشبكة الاستدلالية للمرتبات'!R3:S19,2,0) -> 2500 | T45: =VLOOKUP(J45,'الشبكة الاستدلالية للمرتبات'!R3:X19,7,0) -> 0 | U45: =VLOOKUP(J45,'الشبكة الاستدلالية للمرتبات'!R3:T19,3,0) -> 40 | V45: =VLOOKUP(J45,'الشبكة الاستدلالية للمرتبات'!R3:U19,4,0) -> 0 | W45: =VLOOKUP(J45,'الشبكة الاستدلالية للمرتبات'!R3:W19,6,0) -> 15
A46: 45 | B46: عواج احمد | C46: أستاذ مكون للمدرسة الابتدائية | D46: متزوج | E46: 3 | F46: 1 | G46: 1 | I46: 2657988/89 | J46: 14 | K46: =IF(J46="","",VLOOKUP(J46,'الشبكة الاستدلالية للمرتبات'!A:C,3,0)) -> 621 | L46: =MATCH(K46,'الشبكة الاستدلالية للمرتبات'!C2:C19,0) -> 15 | M46: 900 | N46: 9 | O46: =MATCH(N46,'الشبكة الاستدلالية للمرتبات'!C2:P2,0) -> 11 | P46: =INDEX('الشبكة الاستدلالية للمرتبات'!C2:P19,L46,O46) -> 279 | Q46: =VLOOKUP(J46,'الشبكة الاستدلالية للمرتبات'!R3:V19,5,0) -> 1500 | S46: =VLOOKUP(J46,'الشبكة الاستدلالية للمرتبات'!R3:S19,2,0) -> 3000 | T46: =VLOOKUP(J46,'الشبكة الاستدلالية للمرتبات'!R3:X19,7,0) -> 1000 | U46: =VLOOKUP(J46,'الشبكة الاستدلالية للمرتبات'!R3:T19,3,0) -> 45 | V46: =VLOOKUP(J46,'الشبكة الاستدلالية للمرتبات'!R3:U19,4,0) -> 10 | W46: =VLOOKUP(J46,'الشبكة الاستدلالية للمرتبات'!R3:W19,6,0) -> 15 | Y46: 1
A47: 46 | B47: عواج كلثوم | C47: أستاذ رئيسي للمدرسة الابتدائية | D47: عازبة | I47: 6162916/14 | J47: 12 | K47: =IF(J47="","",VLOOKUP(J47,'الشبكة الاستدلالية للمرتبات'!A:C,3,0)) -> 537 | L47: =MATCH(K47,'الشبكة الاستدلالية للمرتبات'!C2:C19,0) -> 13 | M47: 644 | N47: 4 | O47: =MATCH(N47,'الشبكة الاستدلالية للمرتبات'!C2:P2,0) -> 6 | P47: =INDEX('الشبكة الاستدلالية للمرتبات'!C2:P19,L47,O47) -> 107 | Q47: =VLOOKUP(J47,'الشبكة الاستدلالية للمرتبات'!R3:V19,5,0) -> 1500 | S47: =VLOOKUP(J47,'الشبكة الاستدلالية للمرتبات'!R3:S19,2,0) -> 2500 | T47: =VLOOKUP(J47,'الشبكة الاستدلالية للمرتبات'!R3:X19,7,0) -> 1000 | U47: =VLOOKUP(J47,'الشبكة الاستدلالية للمرتبات'!R3:T19,3,0) -> 40 | V47: =VLOOKUP(J47,'الشبكة الاستدلالية للمرتبات'!R3:U19,4,0) -> 10 | W47: =VLOOKUP(J47,'الشبكة الاستدلالية للمرتبات'!R3:W19,6,0) -> 15 | Y47: 1
A48: 47 | B48: لعوجي رشيد | C48: أستاذ رئيسي للمدرسة الابتدائية | D48: متزوج | E48: 3 | F48: 1 | G48: 1 | I48: 865955/54 | J48: 12 | K48: =IF(J48="","",VLOOKUP(J48,'الشبكة الاستدلالية للمرتبات'!A:C,3,0)) -> 537 | L48: =MATCH(K48,'الشبكة الاستدلالية للمرتبات'!C2:C19,0) -> 13 | M48: 832 | N48: 11 | O48: =MATCH(N48,'الشبكة الاستدلالية للمرتبات'!C2:P2,0) -> 13 | P48: =INDEX('الشبكة الاستدلالية للمرتبات'!C2:P19,L48,O48) -> 295 | Q48: =VLOOKUP(J48,'الشبكة الاستدلالية للمرتبات'!R3:V19,5,0) -> 1500 | S48: =VLOOKUP(J48,'الشبكة الاستدلالية للمرتبات'!R3:S19,2,0) -> 2500 | T48: =VLOOKUP(J48,'الشبكة الاستدلالية للمرتبات'!R3:X19,7,0) -> 1000 | U48: =VLOOKUP(J48,'الشبكة الاستدلالية للمرتبات'!R3:T19,3,0) -> 40 | V48: =VLOOKUP(J48,'الشبكة الاستدلالية للمرتبات'!R3:U19,4,0) -> 10 | W48: =VLOOKUP(J48,'الشبكة الاستدلالية للمرتبات'!R3:W19,6,0) -> 15 | Y48: 1
A49: 48 | B49: محمد شيكوش سارة | C49: أستاذ المدرسة الابتدائية | D49: متزوجة | I49: 11164882/02 | J49: 11 | K49: =IF(J49="","",VLOOKUP(J49,'الشبكة الاستدلالية للمرتبات'!A:C,3,0)) -> 498 | L49: =MATCH(K49,'الشبكة الاستدلالية للمرتبات'!C2:C19,0) -> 12 | M49: 498 | O49: =MATCH(N49,'الشبكة الاستدلالية للمرتبات'!C2:P2,0) -> 2 | P49: =INDEX('الشبكة الاستدلالية للمرتبات'!C2:P19,L49,O49) -> 0 | Q49: =VLOOKUP(J49,'الشبكة الاستدلالية للمرتبات'!R3:V19,5,0) -> 1500 | S49: =VLOOKUP(J49,'الشبكة الاستدلالية للمرتبات'!R3:S19,2,0) -> 2500 | T49: =VLOOKUP(J49,'الشبكة الاستدلالية للمرتبات'!R3:X19,7,0) -> 0 | U49: =VLOOKUP(J49,'الشبكة الاستدلالية للمرتبات'!R3:T19,3,0) -> 40 | V49: =VLOOKUP(J49,'الشبكة الاستدلالية للمرتبات'!R3:U19,4,0) -> 0 | W49: =VLOOKUP(J49,'الشبكة الاستدلالية للمرتبات'!R3:W19,6,0) -> 15
A50: 49 | B50: مخلوف صليحة | C50: توقيف ع.ط.م | D50: متزوجة | E50: 2 | F50: 2 | K50: =IF(J50="","",VLOOKUP(J50,'الشبكة الاستدلالية للمرتبات'!A:C,3,0)) ->  | L50: =MATCH(K50,'الشبكة الاستدلالية للمرتبات'!C2:C19,0) ->  | O50: =MATCH(N50,'الشبكة الاستدلالية للمرتبات'!C2:P2,0) -> 2 | P50: =INDEX('الشبكة الاستدلالية للمرتبات'!C2:P19,L50,O50) ->  | Q50: =VLOOKUP(J50,'الشبكة الاستدلالية للمرتبات'!R3:V19,5,0) ->  | S50: =VLOOKUP(J50,'الشبكة الاستدلالية للمرتبات'!R3:S19,2,0) ->  | T50: =VLOOKUP(J50,'الشبكة الاستدلالية للمرتبات'!R3:X19,7,0) ->  | U50: =VLOOKUP(J50,'الشبكة الاستدلالية للمرتبات'!R3:T19,3,0) ->  | V50: =VLOOKUP(J50,'الشبكة الاستدلالية للمرتبات'!R3:U19,4,0) ->  | W50: =VLOOKUP(J50,'الشبكة الاستدلالية للمرتبات'!R3:W19,6,0) -> 
A51: 50 | B51: مشتر مريم | C51: أستاذ مكون للمدرسة الابتدائية | D51: متزوجة | I51: 2648771/43 | J51: 14 | K51: =IF(J51="","",VLOOKUP(J51,'الشبكة الاستدلالية للمرتبات'!A:C,3,0)) -> 621 | L51: =MATCH(K51,'الشبكة الاستدلالية للمرتبات'!C2:C19,0) -> 15 | M51: 900 | N51: 9 | O51: =MATCH(N51,'الشبكة الاستدلالية للمرتبات'!C2:P2,0) -> 11 | P51: =INDEX('الشبكة الاستدلالية للمرتبات'!C2:P19,L51,O51) -> 279 | Q51: =VLOOKUP(J51,'الشبكة الاستدلالية للمرتبات'!R3:V19,5,0) -> 1500 | S51: =VLOOKUP(J51,'الشبكة الاستدلالية للمرتبات'!R3:S19,2,0) -> 3000 | T51: =VLOOKUP(J51,'الشبكة الاستدلالية للمرتبات'!R3:X19,7,0) -> 1000 | U51: =VLOOKUP(J51,'الشبكة الاستدلالية للمرتبات'!R3:T19,3,0) -> 45 | V51: =VLOOKUP(J51,'الشبكة الاستدلالية للمرتبات'!R3:U19,4,0) -> 10 | W51: =VLOOKUP(J51,'الشبكة الاستدلالية للمرتبات'!R3:W19,6,0) -> 15
A52: 51 | B52: مشتر ميلود | C52: أستاذ مكون للمدرسة الابتدائية | D52: متزوج | E52: 4 | I52: 2799414/63 | J52: 14 | K52: =IF(J52="","",VLOOKUP(J52,'الشبكة الاستدلالية للمرتبات'!A:C,3,0)) -> 621 | L52: =MATCH(K52,'الشبكة الاستدلالية للمرتبات'!C2:C19,0) -> 15 | M52: 807 | N52: 6 | O52: =MATCH(N52,'الشبكة الاستدلالية للمرتبات'!C2:P2,0) -> 8 | P52: =INDEX('الشبكة الاستدلالية للمرتبات'!C2:P19,L52,O52) -> 186 | Q52: =VLOOKUP(J52,'الشبكة الاستدلالية للمرتبات'!R3:V19,5,0) -> 1500 | S52: =VLOOKUP(J52,'الشبكة الاستدلالية للمرتبات'!R3:S19,2,0) -> 3000 | T52: =VLOOKUP(J52,'الشبكة الاستدلالية للمرتبات'!R3:X19,7,0) -> 1000 | U52: =VLOOKUP(J52,'الشبكة الاستدلالية للمرتبات'!R3:T19,3,0) -> 45 | V52: =VLOOKUP(J52,'الشبكة الاستدلالية للمرتبات'!R3:U19,4,0) -> 10 | W52: =VLOOKUP(J52,'الشبكة الاستدلالية للمرتبات'!R3:W19,6,0) -> 15 | Y52: 1 | AA52: 6000
A53: 52 | B53: معمري بوخاتم | C53: أستاذ المدرسة الابتدائية | D53: متزوج | E53: 1 | I53: 6274495/51 | J53: 11 | K53: =IF(J53="","",VLOOKUP(J53,'الشبكة الاستدلالية للمرتبات'!A:C,3,0)) -> 498 | L53: =MATCH(K53,'الشبكة الاستدلالية للمرتبات'!C2:C19,0) -> 12 | M53: 498 | O53: =MATCH(N53,'الشبكة الاستدلالية للمرتبات'!C2:P2,0) -> 2 | P53: =INDEX('الشبكة الاستدلالية للمرتبات'!C2:P19,L53,O53) -> 0 | Q53: =VLOOKUP(J53,'الشبكة الاستدلالية للمرتبات'!R3:V19,5,0) -> 1500 | S53: =VLOOKUP(J53,'الشبكة الاستدلالية للمرتبات'!R3:S19,2,0) -> 2500 | T53: =VLOOKUP(J53,'الشبكة الاستدلالية للمرتبات'!R3:X19,7,0) -> 0 | U53: =VLOOKUP(J53,'الشبكة الاستدلالية للمرتبات'!R3:T19,3,0) -> 40 | V53: =VLOOKUP(J53,'الشبكة الاستدلالية للمرتبات'!R3:U19,4,0) -> 0 | W53: =VLOOKUP(J53,'الشبكة الاستدلالية للمرتبات'!R3:W19,6,0) -> 15 | Y53: 1
A54: 53 | B54: معمري عبد الرحمان بن عامر | C54: أستاذ مكون للمدرسة الابتدائية | D54: متزوج | H54: 1 | I54: 2387976/73 | J54: 14 | K54: =IF(J54="","",VLOOKUP(J54,'الشبكة الاستدلالية للمرتبات'!A:C,3,0)) -> 621 | L54: =MATCH(K54,'الشبكة الاستدلالية للمرتبات'!C2:C19,0) -> 15 | M54: 900 | N54: 9 | O54: =MATCH(N54,'الشبكة الاستدلالية للمرتبات'!C2:P2,0) -> 11 | P54: =INDEX('الشبكة الاستدلالية للمرتبات'!C2:P19,L54,O54) -> 279 | Q54: =VLOOKUP(J54,'الشبكة الاستدلالية للمرتبات'!R3:V19,5,0) -> 1500 | S54: =VLOOKUP(J54,'الشبكة الاستدلالية للمرتبات'!R3:S19,2,0) -> 3000 | T54: =VLOOKUP(J54,'الشبكة الاستدلالية للمرتبات'!R3:X19,7,0) -> 1000 | U54: =VLOOKUP(J54,'الشبكة الاستدلالية للمرتبات'!R3:T19,3,0) -> 45 | V54: =VLOOKUP(J54,'الشبكة الاستدلالية للمرتبات'!R3:U19,4,0) -> 10 | W54: =VLOOKUP(J54,'الشبكة الاستدلالية للمرتبات'!R3:W19,6,0) -> 15 | Y54: 1
A55: 54 | B55: معمري عبلة | C55: أستاذ مكون للمدرسة الابتدائية | D55: متزوجة | I55: 708751/90 | J55: 14 | K55: =IF(J55="","",VLOOKUP(J55,'الشبكة الاستدلالية للمرتبات'!A:C,3,0)) -> 621 | L55: =MATCH(K55,'الشبكة الاستدلالية للمرتبات'!C2:C19,0) -> 15 | M55: 869 | N55: 8 | O55: =MATCH(N55,'الشبكة الاستدلالية للمرتبات'!C2:P2,0) -> 10 | P55: =INDEX('الشبكة الاستدلالية للمرتبات'!C2:P19,L55,O55) -> 248 | Q55: =VLOOKUP(J55,'الشبكة الاستدلالية للمرتبات'!R3:V19,5,0) -> 1500 | S55: =VLOOKUP(J55,'الشبكة الاستدلالية للمرتبات'!R3:S19,2,0) -> 3000 | T55: =VLOOKUP(J55,'الشبكة الاستدلالية للمرتبات'!R3:X19,7,0) -> 1000 | U55: =VLOOKUP(J55,'الشبكة الاستدلالية للمرتبات'!R3:T19,3,0) -> 45 | V55: =VLOOKUP(J55,'الشبكة الاستدلالية للمرتبات'!R3:U19,4,0) -> 10 | W55: =VLOOKUP(J55,'الشبكة الاستدلالية للمرتبات'!R3:W19,6,0) -> 15 | Y55: 1
A56: 55 | B56: معمري عبد النور | C56: أستاذ المدرسة الابتدائية | D56: عازب | I56: 9286988/40 | J56: 11 | K56: =IF(J56="","",VLOOKUP(J56,'الشبكة الاستدلالية للمرتبات'!A:C,3,0)) -> 498 | L56: =MATCH(K56,'الشبكة الاستدلالية للمرتبات'!C2:C19,0) -> 12 | M56: 498 | O56: =MATCH(N56,'الشبكة الاستدلالية للمرتبات'!C2:P2,0) -> 2 | P56: =INDEX('الشبكة الاستدلالية للمرتبات'!C2:P19,L56,O56) -> 0 | Q56: =VLOOKUP(J56,'الشبكة الاستدلالية للمرتبات'!R3:V19,5,0) -> 1500 | S56: =VLOOKUP(J56,'الشبكة الاستدلالية للمرتبات'!R3:S19,2,0) -> 2500 | T56: =VLOOKUP(J56,'الشبكة الاستدلالية للمرتبات'!R3:X19,7,0) -> 0 | U56: =VLOOKUP(J56,'الشبكة الاستدلالية للمرتبات'!R3:T19,3,0) -> 40 | V56: =VLOOKUP(J56,'الشبكة الاستدلالية للمرتبات'!R3:U19,4,0) -> 0 | W56: =VLOOKUP(J56,'الشبكة الاستدلالية للمرتبات'!R3:W19,6,0) -> 15
A57: 56 | B57: معمري كريمة | C57: أستاذ المدرسة الابتدائية | D57: متزوجة | I57: 14132552/61 | J57: 11 | K57: =IF(J57="","",VLOOKUP(J57,'الشبكة الاستدلالية للمرتبات'!A:C,3,0)) -> 498 | L57: =MATCH(K57,'الشبكة الاستدلالية للمرتبات'!C2:C19,0) -> 12 | M57: 498 | O57: =MATCH(N57,'الشبكة الاستدلالية للمرتبات'!C2:P2,0) -> 2 | P57: =INDEX('الشبكة الاستدلالية للمرتبات'!C2:P19,L57,O57) -> 0 | Q57: =VLOOKUP(J57,'الشبكة الاستدلالية للمرتبات'!R3:V19,5,0) -> 1500 | S57: =VLOOKUP(J57,'الشبكة الاستدلالية للمرتبات'!R3:S19,2,0) -> 2500 | T57: =VLOOKUP(J57,'الشبكة الاستدلالية للمرتبات'!R3:X19,7,0) -> 0 | U57: =VLOOKUP(J57,'الشبكة الاستدلالية للمرتبات'!R3:T19,3,0) -> 40 | V57: =VLOOKUP(J57,'الشبكة الاستدلالية للمرتبات'!R3:U19,4,0) -> 0 | W57: =VLOOKUP(J57,'الشبكة الاستدلالية للمرتبات'!R3:W19,6,0) -> 15 | Y57: 1
A58: 57 | B58: هجرسي سليمان | C58: أستاذ المدرسة الابتدائية | D58: متزوج | E58: 1 | I58: 11148761/94 | J58: 11 | K58: =IF(J58="","",VLOOKUP(J58,'الشبكة الاستدلالية للمرتبات'!A:C,3,0)) -> 498 | L58: =MATCH(K58,'الشبكة الاستدلالية للمرتبات'!C2:C19,0) -> 12 | M58: 498 | O58: =MATCH(N58,'الشبكة الاستدلالية للمرتبات'!C2:P2,0) -> 2 | P58: =INDEX('الشبكة الاستدلالية للمرتبات'!C2:P19,L58,O58) -> 0 | Q58: =VLOOKUP(J58,'الشبكة الاستدلالية للمرتبات'!R3:V19,5,0) -> 1500 | S58: =VLOOKUP(J58,'الشبكة الاستدلالية للمرتبات'!R3:S19,2,0) -> 2500 | T58: =VLOOKUP(J58,'الشبكة الاستدلالية للمرتبات'!R3:X19,7,0) -> 0 | U58: =VLOOKUP(J58,'الشبكة الاستدلالية للمرتبات'!R3:T19,3,0) -> 40 | V58: =VLOOKUP(J58,'الشبكة الاستدلالية للمرتبات'!R3:U19,4,0) -> 0 | W58: =VLOOKUP(J58,'الشبكة الاستدلالية للمرتبات'!R3:W19,6,0) -> 15 | Y58: 1
A59: 58 | K59: =IF(J59="","",VLOOKUP(J59,'الشبكة الاستدلالية للمرتبات'!A:C,3,0)) ->  | L59: =MATCH(K59,'الشبكة الاستدلالية للمرتبات'!C2:C19,0) ->  | O59: =MATCH(N59,'الشبكة الاستدلالية للمرتبات'!C2:P2,0) -> 2 | P59: =INDEX('الشبكة الاستدلالية للمرتبات'!C2:P19,L59,O59) ->  | Q59: =VLOOKUP(J59,'الشبكة الاستدلالية للمرتبات'!R3:V19,5,0) ->  | S59: =VLOOKUP(J59,'الشبكة الاستدلالية للمرتبات'!R3:S19,2,0) ->  | T59: =VLOOKUP(J59,'الشبكة الاستدلالية للمرتبات'!R3:X19,7,0) ->  | U59: =VLOOKUP(J59,'الشبكة الاستدلالية للمرتبات'!R3:T19,3,0) ->  | V59: =VLOOKUP(J59,'الشبكة الاستدلالية للمرتبات'!R3:U19,4,0) ->  | W59: =VLOOKUP(J59,'الشبكة الاستدلالية للمرتبات'!R3:W19,6,0) -> 
A60: 59 | K60: =IF(J60="","",VLOOKUP(J60,'الشبكة الاستدلالية للمرتبات'!A:C,3,0)) ->  | L60: =MATCH(K60,'الشبكة الاستدلالية للمرتبات'!C2:C19,0) ->  | O60: =MATCH(N60,'الشبكة الاستدلالية للمرتبات'!C2:P2,0) -> 2 | P60: =INDEX('الشبكة الاستدلالية للمرتبات'!C2:P19,L60,O60) ->  | Q60: =VLOOKUP(J60,'الشبكة الاستدلالية للمرتبات'!R3:V19,5,0) ->  | S60: =VLOOKUP(J60,'الشبكة الاستدلالية للمرتبات'!R3:S19,2,0) ->  | T60: =VLOOKUP(J60,'الشبكة الاستدلالية للمرتبات'!R3:X19,7,0) ->  | U60: =VLOOKUP(J60,'الشبكة الاستدلالية للمرتبات'!R3:T19,3,0) ->  | V60: =VLOOKUP(J60,'الشبكة الاستدلالية للمرتبات'!R3:U19,4,0) ->  | W60: =VLOOKUP(J60,'الشبكة الاستدلالية للمرتبات'!R3:W19,6,0) -> 
A61: 60 | K61: =IF(J61="","",VLOOKUP(J61,'الشبكة الاستدلالية للمرتبات'!A:C,3,0)) ->  | L61: =MATCH(K61,'الشبكة الاستدلالية للمرتبات'!C2:C19,0) ->  | O61: =MATCH(N61,'الشبكة الاستدلالية للمرتبات'!C2:P2,0) -> 2 | P61: =INDEX('الشبكة الاستدلالية للمرتبات'!C2:P19,L61,O61) ->  | Q61: =VLOOKUP(J61,'الشبكة الاستدلالية للمرتبات'!R3:V19,5,0) ->  | S61: =VLOOKUP(J61,'الشبكة الاستدلالية للمرتبات'!R3:S19,2,0) ->  | T61: =VLOOKUP(J61,'الشبكة الاستدلالية للمرتبات'!R3:X19,7,0) ->  | U61: =VLOOKUP(J61,'الشبكة الاستدلالية للمرتبات'!R3:T19,3,0) ->  | V61: =VLOOKUP(J61,'الشبكة الاستدلالية للمرتبات'!R3:U19,4,0) ->  | W61: =VLOOKUP(J61,'الشبكة الاستدلالية للمرتبات'!R3:W19,6,0) -> 
A62: 61 | B62: بن قرون عمر | C62: مدير مدرسة ابتدائية | D62: متزوج | E62: 5 | F62: 3 | G62: 1 | I62: 826531/79 | J62: 14 | K62: =IF(J62="","",VLOOKUP(J62,'الشبكة الاستدلالية للمرتبات'!A:C,3,0)) -> 621 | L62: =MATCH(K62,'الشبكة الاستدلالية للمرتبات'!C2:C19,0) -> 15 | M62: 900 | N62: 9 | O62: =MATCH(N62,'الشبكة الاستدلالية للمرتبات'!C2:P2,0) -> 11 | P62: =INDEX('الشبكة الاستدلالية للمرتبات'!C2:P19,L62,O62) -> 279 | Q62: =VLOOKUP(J62,'الشبكة الاستدلالية للمرتبات'!R3:V19,5,0) -> 1500 | R62: 3000 | S62: =VLOOKUP(J62,'الشبكة الاستدلالية للمرتبات'!R3:S19,2,0) -> 3000 | T62: =VLOOKUP(J62,'الشبكة الاستدلالية للمرتبات'!R3:X19,7,0) -> 1000 | U62: =VLOOKUP(J62,'الشبكة الاستدلالية للمرتبات'!R3:T19,3,0) -> 45 | V62: =VLOOKUP(J62,'الشبكة الاستدلالية للمرتبات'!R3:U19,4,0) -> 10 | W62: =VLOOKUP(J62,'الشبكة الاستدلالية للمرتبات'!R3:W19,6,0) -> 15 | Y62: 1
A63: 62 | B63: حمدي حاج صادق | C63: مدير مدرسة ابتدائية | D63: متزوج | E63: 6 | F63: 3 | G63: 1 | I63: 1901943/84 | J63: 14 | K63: =IF(J63="","",VLOOKUP(J63,'الشبكة الاستدلالية للمرتبات'!A:C,3,0)) -> 621 | L63: =MATCH(K63,'الشبكة الاستدلالية للمرتبات'!C2:C19,0) -> 15 | M63: 932 | N63: 10 | O63: =MATCH(N63,'الشبكة الاستدلالية للمرتبات'!C2:P2,0) -> 12 | P63: =INDEX('الشبكة الاستدلالية للمرتبات'!C2:P19,L63,O63) -> 311 | Q63: =VLOOKUP(J63,'الشبكة الاستدلالية للمرتبات'!R3:V19,5,0) -> 1500 | R63: 3000 | S63: =VLOOKUP(J63,'الشبكة الاستدلالية للمرتبات'!R3:S19,2,0) -> 3000 | T63: =VLOOKUP(J63,'الشبكة الاستدلالية للمرتبات'!R3:X19,7,0) -> 1000 | U63: =VLOOKUP(J63,'الشبكة الاستدلالية للمرتبات'!R3:T19,3,0) -> 45 | V63: =VLOOKUP(J63,'الشبكة الاستدلالية للمرتبات'!R3:U19,4,0) -> 10 | W63: =VLOOKUP(J63,'الشبكة الاستدلالية للمرتبات'!R3:W19,6,0) -> 15 | Y63: 1 | AA63: 6000
A64: 63 | B64: نقبيل بولنوار | C64: مدير مدرسة ابتدائية | D64: متزوج | E64: 4 | G64: 1 | I64: 481198/90 | J64: 14 | K64: =IF(J64="","",VLOOKUP(J64,'الشبكة الاستدلالية للمرتبات'!A:C,3,0)) -> 621 | L64: =MATCH(K64,'الشبكة الاستدلالية للمرتبات'!C2:C19,0) -> 15 | M64: 838 | N64: 7 | O64: =MATCH(N64,'الشبكة الاستدلالية للمرتبات'!C2:P2,0) -> 9 | P64: =INDEX('الشبكة الاستدلالية للمرتبات'!C2:P19,L64,O64) -> 217 | Q64: =VLOOKUP(J64,'الشبكة الاستدلالية للمرتبات'!R3:V19,5,0) -> 1500 | R64: 3000 | S64: =VLOOKUP(J64,'الشبكة الاستدلالية للمرتبات'!R3:S19,2,0) -> 3000 | T64: =VLOOKUP(J64,'الشبكة الاستدلالية للمرتبات'!R3:X19,7,0) -> 1000 | U64: =VLOOKUP(J64,'الشبكة الاستدلالية للمرتبات'!R3:T19,3,0) -> 45 | V64: =VLOOKUP(J64,'الشبكة الاستدلالية للمرتبات'!R3:U19,4,0) -> 10 | W64: =VLOOKUP(J64,'الشبكة الاستدلالية للمرتبات'!R3:W19,6,0) -> 15
A65: 64 | K65: =IF(J65="","",VLOOKUP(J65,'الشبكة الاستدلالية للمرتبات'!A:C,3,0)) ->  | L65: =MATCH(K65,'الشبكة الاستدلالية للمرتبات'!C2:C19,0) ->  | O65: =MATCH(N65,'الشبكة الاستدلالية للمرتبات'!C2:P2,0) -> 2 | P65: =INDEX('الشبكة الاستدلالية للمرتبات'!C2:P19,L65,O65) ->  | Q65: =VLOOKUP(J65,'الشبكة الاستدلالية للمرتبات'!R3:V19,5,0) ->  | S65: =VLOOKUP(J65,'الشبكة الاستدلالية للمرتبات'!R3:S19,2,0) ->  | T65: =VLOOKUP(J65,'الشبكة الاستدلالية للمرتبات'!R3:X19,7,0) ->  | U65: =VLOOKUP(J65,'الشبكة الاستدلالية للمرتبات'!R3:T19,3,0) ->  | V65: =VLOOKUP(J65,'الشبكة الاستدلالية للمرتبات'!R3:U19,4,0) ->  | W65: =VLOOKUP(J65,'الشبكة الاستدلالية للمرتبات'!R3:W19,6,0) -> 
A66: 65 | K66: =IF(J66="","",VLOOKUP(J66,'الشبكة الاستدلالية للمرتبات'!A:C,3,0)) ->  | L66: =MATCH(K66,'الشبكة الاستدلالية للمرتبات'!C2:C19,0) ->  | M66: =K66+P66 ->  | O66: =MATCH(N66,'الشبكة الاستدلالية للمرتبات'!C2:P2,0) -> 2 | P66: =INDEX('الشبكة الاستدلالية للمرتبات'!C2:P19,L66,O66) ->  | Q66: =VLOOKUP(J66,'الشبكة الاستدلالية للمرتبات'!R3:V19,5,0) ->  | S66: =VLOOKUP(J66,'الشبكة الاستدلالية للمرتبات'!R3:S19,2,0) ->  | T66: =VLOOKUP(J66,'الشبكة الاستدلالية للمرتبات'!R3:X19,7,0) ->  | U66: =VLOOKUP(J66,'الشبكة الاستدلالية للمرتبات'!R3:T19,3,0) ->  | V66: =VLOOKUP(J66,'الشبكة الاستدلالية للمرتبات'!R3:U19,4,0) ->  | W66: =VLOOKUP(J66,'الشبكة الاستدلالية للمرتبات'!R3:W19,6,0) -> 
A67: 66 | K67: =IF(J67="","",VLOOKUP(J67,'الشبكة الاستدلالية للمرتبات'!A:C,3,0)) ->  | L67: =MATCH(K67,'الشبكة الاستدلالية للمرتبات'!C2:C19,0) ->  | O67: =MATCH(N67,'الشبكة الاستدلالية للمرتبات'!C2:P2,0) -> 2 | P67: =INDEX('الشبكة الاستدلالية للمرتبات'!C2:P19,L67,O67) ->  | Q67: =VLOOKUP(J67,'الشبكة الاستدلالية للمرتبات'!R3:V19,5,0) ->  | S67: =VLOOKUP(J67,'الشبكة الاستدلالية للمرتبات'!R3:S19,2,0) ->  | T67: =VLOOKUP(J67,'الشبكة الاستدلالية للمرتبات'!R3:X19,7,0) ->  | U67: =VLOOKUP(J67,'الشبكة الاستدلالية للمرتبات'!R3:T19,3,0) ->  | V67: =VLOOKUP(J67,'الشبكة الاستدلالية للمرتبات'!R3:U19,4,0) ->  | W67: =VLOOKUP(J67,'الشبكة الاستدلالية للمرتبات'!R3:W19,6,0) -> 
A68: 67 | K68: =IF(J68="","",VLOOKUP(J68,'الشبكة الاستدلالية للمرتبات'!A:C,3,0)) ->  | L68: =MATCH(K68,'الشبكة الاستدلالية للمرتبات'!C2:C19,0) ->  | O68: =MATCH(N68,'الشبكة الاستدلالية للمرتبات'!C2:P2,0) -> 2 | P68: =INDEX('الشبكة الاستدلالية للمرتبات'!C2:P19,L68,O68) ->  | Q68: =VLOOKUP(J68,'الشبكة الاستدلالية للمرتبات'!R3:V19,5,0) ->  | S68: =VLOOKUP(J68,'الشبكة الاستدلالية للمرتبات'!R3:S19,2,0) ->  | T68: =VLOOKUP(J68,'الشبكة الاستدلالية للمرتبات'!R3:X19,7,0) ->  | U68: =VLOOKUP(J68,'الشبكة الاستدلالية للمرتبات'!R3:T19,3,0) ->  | V68: =VLOOKUP(J68,'الشبكة الاستدلالية للمرتبات'!R3:U19,4,0) ->  | W68: =VLOOKUP(J68,'الشبكة الاستدلالية للمرتبات'!R3:W19,6,0) -> 
A69: 68 | K69: =IF(J69="","",VLOOKUP(J69,'الشبكة الاستدلالية للمرتبات'!A:C,3,0)) ->  | L69: =MATCH(K69,'الشبكة الاستدلالية للمرتبات'!C2:C19,0) ->  | O69: =MATCH(N69,'الشبكة الاستدلالية للمرتبات'!C2:P2,0) -> 2 | P69: =INDEX('الشبكة الاستدلالية للمرتبات'!C2:P19,L69,O69) ->  | Q69: =VLOOKUP(J69,'الشبكة الاستدلالية للمرتبات'!R3:V19,5,0) ->  | S69: =VLOOKUP(J69,'الشبكة الاستدلالية للمرتبات'!R3:S19,2,0) ->  | T69: =VLOOKUP(J69,'الشبكة الاستدلالية للمرتبات'!R3:X19,7,0) ->  | U69: =VLOOKUP(J69,'الشبكة الاستدلالية للمرتبات'!R3:T19,3,0) ->  | V69: =VLOOKUP(J69,'الشبكة الاستدلالية للمرتبات'!R3:U19,4,0) ->  | W69: =VLOOKUP(J69,'الشبكة الاستدلالية للمرتبات'!R3:W19,6,0) -> 
A70: 69 | K70: =IF(J70="","",VLOOKUP(J70,'الشبكة الاستدلالية للمرتبات'!A:C,3,0)) ->  | L70: =MATCH(K70,'الشبكة الاستدلالية للمرتبات'!C2:C19,0) ->  | O70: =MATCH(N70,'الشبكة الاستدلالية للمرتبات'!C2:P2,0) -> 2 | P70: =INDEX('الشبكة الاستدلالية للمرتبات'!C2:P19,L70,O70) ->  | Q70: =VLOOKUP(J70,'الشبكة الاستدلالية للمرتبات'!R3:V19,5,0) ->  | S70: =VLOOKUP(J70,'الشبكة الاستدلالية للمرتبات'!R3:S19,2,0) ->  | T70: =VLOOKUP(J70,'الشبكة الاستدلالية للمرتبات'!R3:X19,7,0) ->  | U70: =VLOOKUP(J70,'الشبكة الاستدلالية للمرتبات'!R3:T19,3,0) ->  | V70: =VLOOKUP(J70,'الشبكة الاستدلالية للمرتبات'!R3:U19,4,0) ->  | W70: =VLOOKUP(J70,'الشبكة الاستدلالية للمرتبات'!R3:W19,6,0) -> 
A71: 70 | K71: =IF(J71="","",VLOOKUP(J71,'الشبكة الاستدلالية للمرتبات'!A:C,3,0)) ->  | L71: =MATCH(K71,'الشبكة الاستدلالية للمرتبات'!C2:C19,0) ->  | O71: =MATCH(N71,'الشبكة الاستدلالية للمرتبات'!C2:P2,0) -> 2 | P71: =INDEX('الشبكة الاستدلالية للمرتبات'!C2:P19,L71,O71) ->  | Q71: =VLOOKUP(J71,'الشبكة الاستدلالية للمرتبات'!R3:V19,5,0) ->  | S71: =VLOOKUP(J71,'الشبكة الاستدلالية للمرتبات'!R3:S19,2,0) ->  | T71: =VLOOKUP(J71,'الشبكة الاستدلالية للمرتبات'!R3:X19,7,0) ->  | U71: =VLOOKUP(J71,'الشبكة الاستدلالية للمرتبات'!R3:T19,3,0) ->  | V71: =VLOOKUP(J71,'الشبكة الاستدلالية للمرتبات'!R3:U19,4,0) ->  | W71: =VLOOKUP(J71,'الشبكة الاستدلالية للمرتبات'!R3:W19,6,0) -> 
A72: 71 | K72: =IF(J72="","",VLOOKUP(J72,'الشبكة الاستدلالية للمرتبات'!A:C,3,0)) ->  | L72: =MATCH(K72,'الشبكة الاستدلالية للمرتبات'!C2:C19,0) ->  | O72: =MATCH(N72,'الشبكة الاستدلالية للمرتبات'!C2:P2,0) -> 2 | P72: =INDEX('الشبكة الاستدلالية للمرتبات'!C2:P19,L72,O72) ->  | Q72: =VLOOKUP(J72,'الشبكة الاستدلالية للمرتبات'!R3:V19,5,0) ->  | S72: =VLOOKUP(J72,'الشبكة الاستدلالية للمرتبات'!R3:S19,2,0) ->  | T72: =VLOOKUP(J72,'الشبكة الاستدلالية للمرتبات'!R3:X19,7,0) ->  | U72: =VLOOKUP(J72,'الشبكة الاستدلالية للمرتبات'!R3:T19,3,0) ->  | V72: =VLOOKUP(J72,'الشبكة الاستدلالية للمرتبات'!R3:U19,4,0) ->  | W72: =VLOOKUP(J72,'الشبكة الاستدلالية للمرتبات'!R3:W19,6,0) -> 
A73: 72 | K73: =IF(J73="","",VLOOKUP(J73,'الشبكة الاستدلالية للمرتبات'!A:C,3,0)) ->  | L73: =MATCH(K73,'الشبكة الاستدلالية للمرتبات'!C2:C19,0) ->  | O73: =MATCH(N73,'الشبكة الاستدلالية للمرتبات'!C2:P2,0) -> 2 | P73: =INDEX('الشبكة الاستدلالية للمرتبات'!C2:P19,L73,O73) ->  | Q73: =VLOOKUP(J73,'الشبكة الاستدلالية للمرتبات'!R3:V19,5,0) ->  | S73: =VLOOKUP(J73,'الشبكة الاستدلالية للمرتبات'!R3:S19,2,0) ->  | T73: =VLOOKUP(J73,'الشبكة الاستدلالية للمرتبات'!R3:X19,7,0) ->  | U73: =VLOOKUP(J73,'الشبكة الاستدلالية للمرتبات'!R3:T19,3,0) ->  | V73: =VLOOKUP(J73,'الشبكة الاستدلالية للمرتبات'!R3:U19,4,0) ->  | W73: =VLOOKUP(J73,'الشبكة الاستدلالية للمرتبات'!R3:W19,6,0) -> 
A74: 73 | K74: =IF(J74="","",VLOOKUP(J74,'الشبكة الاستدلالية للمرتبات'!A:C,3,0)) ->  | L74: =MATCH(K74,'الشبكة الاستدلالية للمرتبات'!C2:C19,0) ->  | O74: =MATCH(N74,'الشبكة الاستدلالية للمرتبات'!C2:P2,0) -> 2 | P74: =INDEX('الشبكة الاستدلالية للمرتبات'!C2:P19,L74,O74) ->  | Q74: =VLOOKUP(J74,'الشبكة الاستدلالية للمرتبات'!R3:V19,5,0) ->  | S74: =VLOOKUP(J74,'الشبكة الاستدلالية للمرتبات'!R3:S19,2,0) ->  | T74: =VLOOKUP(J74,'الشبكة الاستدلالية للمرتبات'!R3:X19,7,0) ->  | U74: =VLOOKUP(J74,'الشبكة الاستدلالية للمرتبات'!R3:T19,3,0) ->  | V74: =VLOOKUP(J74,'الشبكة الاستدلالية للمرتبات'!R3:U19,4,0) ->  | W74: =VLOOKUP(J74,'الشبكة الاستدلالية للمرتبات'!R3:W19,6,0) -> 
A75: 74 | K75: =IF(J75="","",VLOOKUP(J75,'الشبكة الاستدلالية للمرتبات'!A:C,3,0)) ->  | L75: =MATCH(K75,'الشبكة الاستدلالية للمرتبات'!C2:C19,0) ->  | O75: =MATCH(N75,'الشبكة الاستدلالية للمرتبات'!C2:P2,0) -> 2 | P75: =INDEX('الشبكة الاستدلالية للمرتبات'!C2:P19,L75,O75) ->  | Q75: =VLOOKUP(J75,'الشبكة الاستدلالية للمرتبات'!R3:V19,5,0) ->  | S75: =VLOOKUP(J75,'الشبكة الاستدلالية للمرتبات'!R3:S19,2,0) ->  | T75: =VLOOKUP(J75,'الشبكة الاستدلالية للمرتبات'!R3:X19,7,0) ->  | U75: =VLOOKUP(J75,'الشبكة الاستدلالية للمرتبات'!R3:T19,3,0) ->  | V75: =VLOOKUP(J75,'الشبكة الاستدلالية للمرتبات'!R3:U19,4,0) ->  | W75: =VLOOKUP(J75,'الشبكة الاستدلالية للمرتبات'!R3:W19,6,0) -> 
A76: 75 | K76: =IF(J76="","",VLOOKUP(J76,'الشبكة الاستدلالية للمرتبات'!A:C,3,0)) ->  | L76: =MATCH(K76,'الشبكة الاستدلالية للمرتبات'!C2:C19,0) ->  | O76: =MATCH(N76,'الشبكة الاستدلالية للمرتبات'!C2:P2,0) -> 2 | P76: =INDEX('الشبكة الاستدلالية للمرتبات'!C2:P19,L76,O76) ->  | Q76: =VLOOKUP(J76,'الشبكة الاستدلالية للمرتبات'!R3:V19,5,0) ->  | S76: =VLOOKUP(J76,'الشبكة الاستدلالية للمرتبات'!R3:S19,2,0) ->  | T76: =VLOOKUP(J76,'الشبكة الاستدلالية للمرتبات'!R3:X19,7,0) ->  | U76: =VLOOKUP(J76,'الشبكة الاستدلالية للمرتبات'!R3:T19,3,0) ->  | V76: =VLOOKUP(J76,'الشبكة الاستدلالية للمرتبات'!R3:U19,4,0) ->  | W76: =VLOOKUP(J76,'الشبكة الاستدلالية للمرتبات'!R3:W19,6,0) -> 
A77: 76 | K77: =IF(J77="","",VLOOKUP(J77,'الشبكة الاستدلالية للمرتبات'!A:C,3,0)) ->  | L77: =MATCH(K77,'الشبكة الاستدلالية للمرتبات'!C2:C19,0) ->  | O77: =MATCH(N77,'الشبكة الاستدلالية للمرتبات'!C2:P2,0) -> 2 | P77: =INDEX('الشبكة الاستدلالية للمرتبات'!C2:P19,L77,O77) ->  | Q77: =VLOOKUP(J77,'الشبكة الاستدلالية للمرتبات'!R3:V19,5,0) ->  | S77: =VLOOKUP(J77,'الشبكة الاستدلالية للمرتبات'!R3:S19,2,0) ->  | T77: =VLOOKUP(J77,'الشبكة الاستدلالية للمرتبات'!R3:X19,7,0) ->  | U77: =VLOOKUP(J77,'الشبكة الاستدلالية للمرتبات'!R3:T19,3,0) ->  | V77: =VLOOKUP(J77,'الشبكة الاستدلالية للمرتبات'!R3:U19,4,0) ->  | W77: =VLOOKUP(J77,'الشبكة الاستدلالية للمرتبات'!R3:W19,6,0) -> 
A78: 77 | K78: =IF(J78="","",VLOOKUP(J78,'الشبكة الاستدلالية للمرتبات'!A:C,3,0)) ->  | L78: =MATCH(K78,'الشبكة الاستدلالية للمرتبات'!C2:C19,0) ->  | O78: =MATCH(N78,'الشبكة الاستدلالية للمرتبات'!C2:P2,0) -> 2 | P78: =INDEX('الشبكة الاستدلالية للمرتبات'!C2:P19,L78,O78) ->  | Q78: =VLOOKUP(J78,'الشبكة الاستدلالية للمرتبات'!R3:V19,5,0) ->  | S78: =VLOOKUP(J78,'الشبكة الاستدلالية للمرتبات'!R3:S19,2,0) ->  | T78: =VLOOKUP(J78,'الشبكة الاستدلالية للمرتبات'!R3:X19,7,0) ->  | U78: =VLOOKUP(J78,'الشبكة الاستدلالية للمرتبات'!R3:T19,3,0) ->  | V78: =VLOOKUP(J78,'الشبكة الاستدلالية للمرتبات'!R3:U19,4,0) ->  | W78: =VLOOKUP(J78,'الشبكة الاستدلالية للمرتبات'!R3:W19,6,0) -> 
A79: 78 | K79: =IF(J79="","",VLOOKUP(J79,'الشبكة الاستدلالية للمرتبات'!A:C,3,0)) ->  | L79: =MATCH(K79,'الشبكة الاستدلالية للمرتبات'!C2:C19,0) ->  | O79: =MATCH(N79,'الشبكة الاستدلالية للمرتبات'!C2:P2,0) -> 2 | P79: =INDEX('الشبكة الاستدلالية للمرتبات'!C2:P19,L79,O79) ->  | Q79: =VLOOKUP(J79,'الشبكة الاستدلالية للمرتبات'!R3:V19,5,0) ->  | S79: =VLOOKUP(J79,'الشبكة الاستدلالية للمرتبات'!R3:S19,2,0) ->  | T79: =VLOOKUP(J79,'الشبكة الاستدلالية للمرتبات'!R3:X19,7,0) ->  | U79: =VLOOKUP(J79,'الشبكة الاستدلالية للمرتبات'!R3:T19,3,0) ->  | V79: =VLOOKUP(J79,'الشبكة الاستدلالية للمرتبات'!R3:U19,4,0) ->  | W79: =VLOOKUP(J79,'الشبكة الاستدلالية للمرتبات'!R3:W19,6,0) -> 
A80: 79 | K80: =IF(J80="","",VLOOKUP(J80,'الشبكة الاستدلالية للمرتبات'!A:C,3,0)) ->  | L80: =MATCH(K80,'الشبكة الاستدلالية للمرتبات'!C2:C19,0) ->  | O80: =MATCH(N80,'الشبكة الاستدلالية للمرتبات'!C2:P2,0) -> 2 | P80: =INDEX('الشبكة الاستدلالية للمرتبات'!C2:P19,L80,O80) ->  | Q80: =VLOOKUP(J80,'الشبكة الاستدلالية للمرتبات'!R3:V19,5,0) ->  | S80: =VLOOKUP(J80,'الشبكة الاستدلالية للمرتبات'!R3:S19,2,0) ->  | T80: =VLOOKUP(J80,'الشبكة الاستدلالية للمرتبات'!R3:X19,7,0) ->  | U80: =VLOOKUP(J80,'الشبكة الاستدلالية للمرتبات'!R3:T19,3,0) ->  | V80: =VLOOKUP(J80,'الشبكة الاستدلالية للمرتبات'!R3:U19,4,0) ->  | W80: =VLOOKUP(J80,'الشبكة الاستدلالية للمرتبات'!R3:W19,6,0) -> 
A81: 80 | K81: =IF(J81="","",VLOOKUP(J81,'الشبكة الاستدلالية للمرتبات'!A:C,3,0)) ->  | L81: =MATCH(K81,'الشبكة الاستدلالية للمرتبات'!C2:C19,0) ->  | O81: =MATCH(N81,'الشبكة الاستدلالية للمرتبات'!C2:P2,0) -> 2 | P81: =INDEX('الشبكة الاستدلالية للمرتبات'!C2:P19,L81,O81) ->  | Q81: =VLOOKUP(J81,'الشبكة الاستدلالية للمرتبات'!R3:V19,5,0) ->  | S81: =VLOOKUP(J81,'الشبكة الاستدلالية للمرتبات'!R3:S19,2,0) ->  | T81: =VLOOKUP(J81,'الشبكة الاستدلالية للمرتبات'!R3:X19,7,0) ->  | U81: =VLOOKUP(J81,'الشبكة الاستدلالية للمرتبات'!R53:T69,3,0) ->  | V81: =VLOOKUP(J81,'الشبكة الاستدلالية للمرتبات'!R3:U19,4,0) ->  | W81: =VLOOKUP(J81,'الشبكة الاستدلالية للمرتبات'!R3:W19,6,0) -> 
A82: 81 | K82: =IF(J82="","",VLOOKUP(J82,'الشبكة الاستدلالية للمرتبات'!A:C,3,0)) ->  | L82: =MATCH(K82,'الشبكة الاستدلالية للمرتبات'!C2:C19,0) ->  | O82: =MATCH(N82,'الشبكة الاستدلالية للمرتبات'!C2:P2,0) -> 2 | P82: =INDEX('الشبكة الاستدلالية للمرتبات'!C2:P19,L82,O82) ->  | Q82: =VLOOKUP(J82,'الشبكة الاستدلالية للمرتبات'!R3:V19,5,0) ->  | S82: =VLOOKUP(J82,'الشبكة الاستدلالية للمرتبات'!R3:S19,2,0) ->  | T82: =VLOOKUP(J82,'الشبكة الاستدلالية للمرتبات'!R3:X19,7,0) ->  | U82: =VLOOKUP(J82,'الشبكة الاستدلالية للمرتبات'!R3:T19,3,0) ->  | V82: =VLOOKUP(J82,'الشبكة الاستدلالية للمرتبات'!R3:U19,4,0) ->  | W82: =VLOOKUP(J82,'الشبكة الاستدلالية للمرتبات'!R3:W19,6,0) -> 
A83: 82 | K83: =IF(J83="","",VLOOKUP(J83,'الشبكة الاستدلالية للمرتبات'!A:C,3,0)) ->  | L83: =MATCH(K83,'الشبكة الاستدلالية للمرتبات'!C2:C19,0) ->  | O83: =MATCH(N83,'الشبكة الاستدلالية للمرتبات'!C2:P2,0) -> 2 | P83: =INDEX('الشبكة الاستدلالية للمرتبات'!C2:P19,L83,O83) ->  | Q83: =VLOOKUP(J83,'الشبكة الاستدلالية للمرتبات'!R3:V19,5,0) ->  | S83: =VLOOKUP(J83,'الشبكة الاستدلالية للمرتبات'!R3:S19,2,0) ->  | T83: =VLOOKUP(J83,'الشبكة الاستدلالية للمرتبات'!R3:X19,7,0) ->  | U83: =VLOOKUP(J83,'الشبكة الاستدلالية للمرتبات'!R3:T19,3,0) ->  | V83: =VLOOKUP(J83,'الشبكة الاستدلالية للمرتبات'!R3:U19,4,0) ->  | W83: =VLOOKUP(J83,'الشبكة الاستدلالية للمرتبات'!R3:W19,6,0) -> 
A84: 83 | K84: =IF(J84="","",VLOOKUP(J84,'الشبكة الاستدلالية للمرتبات'!A:C,3,0)) ->  | L84: =MATCH(K84,'الشبكة الاستدلالية للمرتبات'!C2:C19,0) ->  | O84: =MATCH(N84,'الشبكة الاستدلالية للمرتبات'!C2:P2,0) -> 2 | P84: =INDEX('الشبكة الاستدلالية للمرتبات'!C2:P19,L84,O84) ->  | Q84: =VLOOKUP(J84,'الشبكة الاستدلالية للمرتبات'!R3:V19,5,0) ->  | S84: =VLOOKUP(J84,'الشبكة الاستدلالية للمرتبات'!R3:S19,2,0) ->  | T84: =VLOOKUP(J84,'الشبكة الاستدلالية للمرتبات'!R3:X19,7,0) ->  | U84: =VLOOKUP(J84,'الشبكة الاستدلالية للمرتبات'!R3:T19,3,0) ->  | V84: =VLOOKUP(J84,'الشبكة الاستدلالية للمرتبات'!R3:U19,4,0) ->  | W84: =VLOOKUP(J84,'الشبكة الاستدلالية للمرتبات'!R3:W19,6,0) -> 
A85: 84 | K85: =IF(J85="","",VLOOKUP(J85,'الشبكة الاستدلالية للمرتبات'!A:C,3,0)) ->  | L85: =MATCH(K85,'الشبكة الاستدلالية للمرتبات'!C2:C19,0) ->  | O85: =MATCH(N85,'الشبكة الاستدلالية للمرتبات'!C2:P2,0) -> 2 | P85: =INDEX('الشبكة الاستدلالية للمرتبات'!C2:P19,L85,O85) ->  | Q85: =VLOOKUP(J85,'الشبكة الاستدلالية للمرتبات'!R3:V19,5,0) ->  | S85: =VLOOKUP(J85,'الشبكة الاستدلالية للمرتبات'!R3:S19,2,0) ->  | T85: =VLOOKUP(J85,'الشبكة الاستدلالية للمرتبات'!R3:X19,7,0) ->  | U85: =VLOOKUP(J85,'الشبكة الاستدلالية للمرتبات'!R3:T19,3,0) ->  | V85: =VLOOKUP(J85,'الشبكة الاستدلالية للمرتبات'!R3:U19,4,0) ->  | W85: =VLOOKUP(J85,'الشبكة الاستدلالية للمرتبات'!R3:W19,6,0) -> 
A86: 85 | K86: =IF(J86="","",VLOOKUP(J86,'الشبكة الاستدلالية للمرتبات'!A:C,3,0)) ->  | L86: =MATCH(K86,'الشبكة الاستدلالية للمرتبات'!C2:C19,0) ->  | O86: =MATCH(N86,'الشبكة الاستدلالية للمرتبات'!C2:P2,0) -> 2 | P86: =INDEX('الشبكة الاستدلالية للمرتبات'!C2:P19,L86,O86) ->  | Q86: =VLOOKUP(J86,'الشبكة الاستدلالية للمرتبات'!R3:V19,5,0) ->  | S86: =VLOOKUP(J86,'الشبكة الاستدلالية للمرتبات'!R3:S19,2,0) ->  | T86: =VLOOKUP(J86,'الشبكة الاستدلالية للمرتبات'!R3:X19,7,0) ->  | U86: =VLOOKUP(J86,'الشبكة الاستدلالية للمرتبات'!R3:T19,3,0) ->  | V86: =VLOOKUP(J86,'الشبكة الاستدلالية للمرتبات'!R3:U19,4,0) ->  | W86: =VLOOKUP(J86,'الشبكة الاستدلالية للمرتبات'!R3:W19,6,0) -> 
A87: 86 | K87: =IF(J87="","",VLOOKUP(J87,'الشبكة الاستدلالية للمرتبات'!A:C,3,0)) ->  | L87: =MATCH(K87,'الشبكة الاستدلالية للمرتبات'!C2:C19,0) ->  | O87: =MATCH(N87,'الشبكة الاستدلالية للمرتبات'!C2:P2,0) -> 2 | P87: =INDEX('الشبكة الاستدلالية للمرتبات'!C2:P19,L87,O87) ->  | Q87: =VLOOKUP(J87,'الشبكة الاستدلالية للمرتبات'!R3:V19,5,0) ->  | S87: =VLOOKUP(J87,'الشبكة الاستدلالية للمرتبات'!R3:S19,2,0) ->  | T87: =VLOOKUP(J87,'الشبكة الاستدلالية للمرتبات'!R3:X19,7,0) ->  | U87: =VLOOKUP(J87,'الشبكة الاستدلالية للمرتبات'!R3:T19,3,0) ->  | V87: =VLOOKUP(J87,'الشبكة الاستدلالية للمرتبات'!R3:U19,4,0) ->  | W87: =VLOOKUP(J87,'الشبكة الاستدلالية للمرتبات'!R3:W19,6,0) -> 
A88: 87 | K88: =IF(J88="","",VLOOKUP(J88,'الشبكة الاستدلالية للمرتبات'!A:C,3,0)) ->  | L88: =MATCH(K88,'الشبكة الاستدلالية للمرتبات'!C2:C19,0) ->  | O88: =MATCH(N88,'الشبكة الاستدلالية للمرتبات'!C2:P2,0) -> 2 | P88: =INDEX('الشبكة الاستدلالية للمرتبات'!C2:P19,L88,O88) ->  | Q88: =VLOOKUP(J88,'الشبكة الاستدلالية للمرتبات'!R3:V19,5,0) ->  | S88: =VLOOKUP(J88,'الشبكة الاستدلالية للمرتبات'!R3:S19,2,0) ->  | T88: =VLOOKUP(J88,'الشبكة الاستدلالية للمرتبات'!R3:X19,7,0) ->  | U88: =VLOOKUP(J88,'الشبكة الاستدلالية للمرتبات'!R3:T19,3,0) ->  | V88: =VLOOKUP(J88,'الشبكة الاستدلالية للمرتبات'!R3:U19,4,0) ->  | W88: =VLOOKUP(J88,'الشبكة الاستدلالية للمرتبات'!R3:W19,6,0) -> 
A89: 88 | K89: =IF(J89="","",VLOOKUP(J89,'الشبكة الاستدلالية للمرتبات'!A:C,3,0)) ->  | L89: =MATCH(K89,'الشبكة الاستدلالية للمرتبات'!C2:C19,0) ->  | O89: =MATCH(N89,'الشبكة الاستدلالية للمرتبات'!C2:P2,0) -> 2 | P89: =INDEX('الشبكة الاستدلالية للمرتبات'!C2:P19,L89,O89) ->  | Q89: =VLOOKUP(J89,'الشبكة الاستدلالية للمرتبات'!R3:V19,5,0) ->  | S89: =VLOOKUP(J89,'الشبكة الاستدلالية للمرتبات'!R3:S19,2,0) ->  | T89: =VLOOKUP(J89,'الشبكة الاستدلالية للمرتبات'!R3:X19,7,0) ->  | U89: =VLOOKUP(J89,'الشبكة الاستدلالية للمرتبات'!R3:T19,3,0) ->  | V89: =VLOOKUP(J89,'الشبكة الاستدلالية للمرتبات'!R3:U19,4,0) ->  | W89: =VLOOKUP(J89,'الشبكة الاستدلالية للمرتبات'!R3:W19,6,0) -> 
A90: 89 | K90: =IF(J90="","",VLOOKUP(J90,'الشبكة الاستدلالية للمرتبات'!A:C,3,0)) ->  | L90: =MATCH(K90,'الشبكة الاستدلالية للمرتبات'!C2:C19,0) ->  | O90: =MATCH(N90,'الشبكة الاستدلالية للمرتبات'!C2:P2,0) -> 2 | P90: =INDEX('الشبكة الاستدلالية للمرتبات'!C2:P19,L90,O90) ->  | Q90: =VLOOKUP(J90,'الشبكة الاستدلالية للمرتبات'!R3:V19,5,0) ->  | S90: =VLOOKUP(J90,'الشبكة الاستدلالية للمرتبات'!R3:S19,2,0) ->  | T90: =VLOOKUP(J90,'الشبكة الاستدلالية للمرتبات'!R3:X19,7,0) ->  | U90: =VLOOKUP(J90,'الشبكة الاستدلالية للمرتبات'!R3:T19,3,0) ->  | V90: =VLOOKUP(J90,'الشبكة الاستدلالية للمرتبات'!R3:U19,4,0) ->  | W90: =VLOOKUP(J90,'الشبكة الاستدلالية للمرتبات'!R3:W19,6,0) -> 
A91: 90 | K91: =IF(J91="","",VLOOKUP(J91,'الشبكة الاستدلالية للمرتبات'!A:C,3,0)) ->  | L91: =MATCH(K91,'الشبكة الاستدلالية للمرتبات'!C2:C19,0) ->  | O91: =MATCH(N91,'الشبكة الاستدلالية للمرتبات'!C2:P2,0) -> 2 | P91: =INDEX('الشبكة الاستدلالية للمرتبات'!C2:P19,L91,O91) ->  | Q91: =VLOOKUP(J91,'الشبكة الاستدلالية للمرتبات'!R3:V19,5,0) ->  | S91: =VLOOKUP(J91,'الشبكة الاستدلالية للمرتبات'!R3:S19,2,0) ->  | T91: =VLOOKUP(J91,'الشبكة الاستدلالية للمرتبات'!R3:X19,7,0) ->  | U91: =VLOOKUP(J91,'الشبكة الاستدلالية للمرتبات'!R3:T19,3,0) ->  | V91: =VLOOKUP(J91,'الشبكة الاستدلالية للمرتبات'!R3:U19,4,0) ->  | W91: =VLOOKUP(J91,'الشبكة الاستدلالية للمرتبات'!R3:W19,6,0) -> 
S92: =VLOOKUP(J92,'الشبكة الاستدلالية للمرتبات'!R3:S19,2,0) ->  | U92: =VLOOKUP(J92,'الشبكة الاستدلالية للمرتبات'!R64:T80,3,0) -> 
S93: =VLOOKUP(J93,'الشبكة الاستدلالية للمرتبات'!R3:S19,2,0) ->  | U93: =VLOOKUP(J93,'الشبكة الاستدلالية للمرتبات'!R65:T81,3,0) -> 
S94: =VLOOKUP(J94,'الشبكة الاستدلالية للمرتبات'!R3:S19,2,0) ->  | U94: =VLOOKUP(J94,'الشبكة الاستدلالية للمرتبات'!R66:T82,3,0) -> 
S95: =VLOOKUP(J95,'الشبكة الاستدلالية للمرتبات'!R3:S19,2,0) ->  | U95: =VLOOKUP(J95,'الشبكة الاستدلالية للمرتبات'!R67:T83,3,0) -> 
S96: =VLOOKUP(J96,'الشبكة الاستدلالية للمرتبات'!R3:S19,2,0) ->  | U96: =VLOOKUP(J96,'الشبكة الاستدلالية للمرتبات'!R68:T84,3,0) -> 
S97: =VLOOKUP(J97,'الشبكة الاستدلالية للمرتبات'!R3:S19,2,0) ->  | U97: =VLOOKUP(J97,'الشبكة الاستدلالية للمرتبات'!R69:T85,3,0) -> 
S98: =VLOOKUP(J98,'الشبكة الاستدلالية للمرتبات'!R3:S19,2,0) ->  | U98: =VLOOKUP(J98,'الشبكة الاستدلالية للمرتبات'!R70:T86,3,0) -> 
S99: =VLOOKUP(J99,'الشبكة الاستدلالية للمرتبات'!R3:S19,2,0) ->  | U99: =VLOOKUP(J99,'الشبكة الاستدلالية للمرتبات'!R71:T87,3,0) -> 
S100: =VLOOKUP(J100,'الشبكة الاستدلالية للمرتبات'!R3:S19,2,0) ->  | U100: =VLOOKUP(J100,'الشبكة الاستدلالية للمرتبات'!R72:T88,3,0) -> 
S101: =VLOOKUP(J101,'الشبكة الاستدلالية للمرتبات'!R3:S19,2,0) -> 
S102: =VLOOKUP(J102,'الشبكة الاستدلالية للمرتبات'!R3:S19,2,0) -> 
S103: =VLOOKUP(J103,'الشبكة الاستدلالية للمرتبات'!R104:S120,2,0) -> 
S104: =VLOOKUP(J104,'الشبكة الاستدلالية للمرتبات'!R105:S121,2,0) -> 
S105: =VLOOKUP(J105,'الشبكة الاستدلالية للمرتبات'!R106:S122,2,0) -> 
S106: =VLOOKUP(J106,'الشبكة الاستدلالية للمرتبات'!R107:S123,2,0) -> 
S107: =VLOOKUP(J107,'الشبكة الاستدلالية للمرتبات'!R108:S124,2,0) -> 
S108: =VLOOKUP(J108,'الشبكة الاستدلالية للمرتبات'!R109:S125,2,0) -> 
S109: =VLOOKUP(J109,'الشبكة الاستدلالية للمرتبات'!R110:S126,2,0) -> 
S110: =VLOOKUP(J110,'الشبكة الاستدلالية للمرتبات'!R111:S127,2,0) -> 
S111: =VLOOKUP(J111,'الشبكة الاستدلالية للمرتبات'!R112:S128,2,0) -> 
S112: =VLOOKUP(J112,'الشبكة الاستدلالية للمرتبات'!R113:S129,2,0) -> 
S113: =VLOOKUP(J113,'الشبكة الاستدلالية للمرتبات'!R114:S130,2,0) -> 
S114: =VLOOKUP(J114,'الشبكة الاستدلالية للمرتبات'!R115:S131,2,0) -> 
S115: =VLOOKUP(J115,'الشبكة الاستدلالية للمرتبات'!R116:S132,2,0) -> 
S116: =VLOOKUP(J116,'الشبكة الاستدلالية للمرتبات'!R117:S133,2,0) -> 
S117: =VLOOKUP(J117,'الشبكة الاستدلالية للمرتبات'!R118:S134,2,0) -> 
S118: =VLOOKUP(J118,'الشبكة الاستدلالية للمرتبات'!R119:S135,2,0) -> 
S119: =VLOOKUP(J119,'الشبكة الاستدلالية للمرتبات'!R120:S136,2,0) -> 
S120: =VLOOKUP(J120,'الشبكة الاستدلالية للمرتبات'!R121:S137,2,0) -> 
S121: =VLOOKUP(J121,'الشبكة الاستدلالية للمرتبات'!R122:S138,2,0) -> 
S122: =VLOOKUP(J122,'الشبكة الاستدلالية للمرتبات'!R123:S139,2,0) -> 
S160: =VLOOKUP(J160,'الشبكة الاستدلالية للمرتبات'!R161:S177,2,0) -> 
S161: =VLOOKUP(J161,'الشبكة الاستدلالية للمرتبات'!R162:S178,2,0) -> 
S162: =VLOOKUP(J162,'الشبكة الاستدلالية للمرتبات'!R163:S179,2,0) -> 
S163: =VLOOKUP(J163,'الشبكة الاستدلالية للمرتبات'!R164:S180,2,0) -> 
K164: =IF(J164="","",VLOOKUP(J164,'الشبكة الاستدلالية للمرتبات'!A:C,3,0)) ->  | S164: =VLOOKUP(J164,'الشبكة الاستدلالية للمرتبات'!R165:S181,2,0) -> 
K165: =IF(J165="","",VLOOKUP(J165,'الشبكة الاستدلالية للمرتبات'!A:C,3,0)) ->  | S165: =VLOOKUP(J165,'الشبكة الاستدلالية للمرتبات'!R166:S182,2,0) -> 
K166: =IF(J166="","",VLOOKUP(J166,'الشبكة الاستدلالية للمرتبات'!A:C,3,0)) ->  | S166: =VLOOKUP(J166,'الشبكة الاستدلالية للمرتبات'!R167:S183,2,0) -> 
K167: =IF(J167="","",VLOOKUP(J167,'الشبكة الاستدلالية للمرتبات'!A:C,3,0)) ->  | S167: =VLOOKUP(J167,'الشبكة الاستدلالية للمرتبات'!R168:S184,2,0) -> 
K168: =IF(J168="","",VLOOKUP(J168,'الشبكة الاستدلالية للمرتبات'!A:C,3,0)) ->  | S168: =VLOOKUP(J168,'الشبكة الاستدلالية للمرتبات'!R169:S185,2,0) -> 
K169: =IF(J169="","",VLOOKUP(J169,'الشبكة الاستدلالية للمرتبات'!A:C,3,0)) ->  | S169: =VLOOKUP(J169,'الشبكة الاستدلالية للمرتبات'!R170:S186,2,0) -> 
K170: =IF(J170="","",VLOOKUP(J170,'الشبكة الاستدلالية للمرتبات'!A:C,3,0)) ->  | S170: =VLOOKUP(J170,'الشبكة الاستدلالية للمرتبات'!R171:S187,2,0) -> 
K171: =IF(J171="","",VLOOKUP(J171,'الشبكة الاستدلالية للمرتبات'!A:C,3,0)) ->  | S171: =VLOOKUP(J171,'الشبكة الاستدلالية للمرتبات'!R172:S188,2,0) -> 
K172: =IF(J172="","",VLOOKUP(J172,'الشبكة الاستدلالية للمرتبات'!A:C,3,0)) ->  | S172: =VLOOKUP(J172,'الشبكة الاستدلالية للمرتبات'!R173:S189,2,0) -> 
K173: =IF(J173="","",VLOOKUP(J173,'الشبكة الاستدلالية للمرتبات'!A:C,3,0)) ->  | S173: =VLOOKUP(J173,'الشبكة الاستدلالية للمرتبات'!R174:S190,2,0) -> 
K174: =IF(J174="","",VLOOKUP(J174,'الشبكة الاستدلالية للمرتبات'!A:C,3,0)) ->  | S174: =VLOOKUP(J174,'الشبكة الاستدلالية للمرتبات'!R175:S191,2,0) -> 
K175: =IF(J175="","",VLOOKUP(J175,'الشبكة الاستدلالية للمرتبات'!A:C,3,0)) ->  | S175: =VLOOKUP(J175,'الشبكة الاستدلالية للمرتبات'!R176:S192,2,0) -> 
K176: =IF(J176="","",VLOOKUP(J176,'الشبكة الاستدلالية للمرتبات'!A:C,3,0)) ->  | S176: =VLOOKUP(J176,'الشبكة الاستدلالية للمرتبات'!R177:S193,2,0) -> 
K177: =IF(J177="","",VLOOKUP(J177,'الشبكة الاستدلالية للمرتبات'!A:C,3,0)) ->  | S177: =VLOOKUP(J177,'الشبكة الاستدلالية للمرتبات'!R178:S194,2,0) -> 
K178: =IF(J178="","",VLOOKUP(J178,'الشبكة الاستدلالية للمرتبات'!A:C,3,0)) ->  | S178: =VLOOKUP(J178,'الشبكة الاستدلالية للمرتبات'!R179:S195,2,0) -> 
K179: =IF(J179="","",VLOOKUP(J179,'الشبكة الاستدلالية للمرتبات'!A:C,3,0)) ->  | S179: =VLOOKUP(J179,'الشبكة الاستدلالية للمرتبات'!R180:S196,2,0) -> 
K180: =IF(J180="","",VLOOKUP(J180,'الشبكة الاستدلالية للمرتبات'!A:C,3,0)) ->  | S180: =VLOOKUP(J180,'الشبكة الاستدلالية للمرتبات'!R181:S197,2,0) -> 
K181: =IF(J181="","",VLOOKUP(J181,'الشبكة الاستدلالية للمرتبات'!A:C,3,0)) ->  | S181: =VLOOKUP(J181,'الشبكة الاستدلالية للمرتبات'!R182:S198,2,0) -> 
K182: =IF(J182="","",VLOOKUP(J182,'الشبكة الاستدلالية للمرتبات'!A:C,3,0)) ->  | S182: =VLOOKUP(J182,'الشبكة الاستدلالية للمرتبات'!R183:S199,2,0) -> 
K183: =IF(J183="","",VLOOKUP(J183,'الشبكة الاستدلالية للمرتبات'!A:C,3,0)) ->  | S183: =VLOOKUP(J183,'الشبكة الاستدلالية للمرتبات'!R184:S200,2,0) -> 
K184: =IF(J184="","",VLOOKUP(J184,'الشبكة الاستدلالية للمرتبات'!A:C,3,0)) ->  | S184: =VLOOKUP(J184,'الشبكة الاستدلالية للمرتبات'!R185:S201,2,0) -> 
K185: =IF(J185="","",VLOOKUP(J185,'الشبكة الاستدلالية للمرتبات'!A:C,3,0)) ->  | S185: =VLOOKUP(J185,'الشبكة الاستدلالية للمرتبات'!R186:S202,2,0) -> 
K186: =IF(J186="","",VLOOKUP(J186,'الشبكة الاستدلالية للمرتبات'!A:C,3,0)) ->  | S186: =VLOOKUP(J186,'الشبكة الاستدلالية للمرتبات'!R187:S203,2,0) -> 
K187: =IF(J187="","",VLOOKUP(J187,'الشبكة الاستدلالية للمرتبات'!A:C,3,0)) ->  | S187: =VLOOKUP(J187,'الشبكة الاستدلالية للمرتبات'!R188:S204,2,0) -> 
K188: =IF(J188="","",VLOOKUP(J188,'الشبكة الاستدلالية للمرتبات'!A:C,3,0)) ->  | S188: =VLOOKUP(J188,'الشبكة الاستدلالية للمرتبات'!R189:S205,2,0) -> 
K189: =IF(J189="","",VLOOKUP(J189,'الشبكة الاستدلالية للمرتبات'!A:C,3,0)) ->  | S189: =VLOOKUP(J189,'الشبكة الاستدلالية للمرتبات'!R190:S206,2,0) -> 
K190: =IF(J190="","",VLOOKUP(J190,'الشبكة الاستدلالية للمرتبات'!A:C,3,0)) ->  | S190: =VLOOKUP(J190,'الشبكة الاستدلالية للمرتبات'!R191:S207,2,0) -> 
K191: =IF(J191="","",VLOOKUP(J191,'الشبكة الاستدلالية للمرتبات'!A:C,3,0)) ->  | S191: =VLOOKUP(J191,'الشبكة الاستدلالية للمرتبات'!R192:S208,2,0) -> 
K192: =IF(J192="","",VLOOKUP(J192,'الشبكة الاستدلالية للمرتبات'!A:C,3,0)) ->  | S192: =VLOOKUP(J192,'الشبكة الاستدلالية للمرتبات'!R193:S209,2,0) -> 
K193: =IF(J193="","",VLOOKUP(J193,'الشبكة الاستدلالية للمرتبات'!A:C,3,0)) ->  | S193: =VLOOKUP(J193,'الشبكة الاستدلالية للمرتبات'!R194:S210,2,0) -> 
K194: =IF(J194="","",VLOOKUP(J194,'الشبكة الاستدلالية للمرتبات'!A:C,3,0)) ->  | S194: =VLOOKUP(J194,'الشبكة الاستدلالية للمرتبات'!R195:S211,2,0) -> 
K195: =IF(J195="","",VLOOKUP(J195,'الشبكة الاستدلالية للمرتبات'!A:C,3,0)) ->  | S195: =VLOOKUP(J195,'الشبكة الاستدلالية للمرتبات'!R196:S212,2,0) -> 
K196: =IF(J196="","",VLOOKUP(J196,'الشبكة الاستدلالية للمرتبات'!A:C,3,0)) ->  | S196: =VLOOKUP(J196,'الشبكة الاستدلالية للمرتبات'!R197:S213,2,0) -> 
K197: =IF(J197="","",VLOOKUP(J197,'الشبكة الاستدلالية للمرتبات'!A:C,3,0)) ->  | S197: =VLOOKUP(J197,'الشبكة الاستدلالية للمرتبات'!R198:S214,2,0) -> 
K198: =IF(J198="","",VLOOKUP(J198,'الشبكة الاستدلالية للمرتبات'!A:C,3,0)) ->  | S198: =VLOOKUP(J198,'الشبكة الاستدلالية للمرتبات'!R199:S215,2,0) -> 
K199: =IF(J199="","",VLOOKUP(J199,'الشبكة الاستدلالية للمرتبات'!A:C,3,0)) ->  | S199: =VLOOKUP(J199,'الشبكة الاستدلالية للمرتبات'!R200:S216,2,0) -> 
K200: =IF(J200="","",VLOOKUP(J200,'الشبكة الاستدلالية للمرتبات'!A:C,3,0)) ->  | S200: =VLOOKUP(J200,'الشبكة الاستدلالية للمرتبات'!R201:S217,2,0) -> 
K201: =IF(J201="","",VLOOKUP(J201,'الشبكة الاستدلالية للمرتبات'!A:C,3,0)) ->  | S201: =VLOOKUP(J201,'الشبكة الاستدلالية للمرتبات'!R202:S218,2,0) -> 
K202: =IF(J202="","",VLOOKUP(J202,'الشبكة الاستدلالية للمرتبات'!A:C,3,0)) ->  | S202: =VLOOKUP(J202,'الشبكة الاستدلالية للمرتبات'!R203:S219,2,0) -> 
K203: =IF(J203="","",VLOOKUP(J203,'الشبكة الاستدلالية للمرتبات'!A:C,3,0)) ->  | S203: =VLOOKUP(J203,'الشبكة الاستدلالية للمرتبات'!R204:S220,2,0) -> 
K204: =IF(J204="","",VLOOKUP(J204,'الشبكة الاستدلالية للمرتبات'!A:C,3,0)) ->  | S204: =VLOOKUP(J204,'الشبكة الاستدلالية للمرتبات'!R205:S221,2,0) -> 
K205: =IF(J205="","",VLOOKUP(J205,'الشبكة الاستدلالية للمرتبات'!A:C,3,0)) ->  | S205: =VLOOKUP(J205,'الشبكة الاستدلالية للمرتبات'!R206:S222,2,0) -> 
K206: =IF(J206="","",VLOOKUP(J206,'الشبكة الاستدلالية للمرتبات'!A:C,3,0)) ->  | S206: =VLOOKUP(J206,'الشبكة الاستدلالية للمرتبات'!R207:S223,2,0) -> 
K207: =IF(J207="","",VLOOKUP(J207,'الشبكة الاستدلالية للمرتبات'!A:C,3,0)) ->  | S207: =VLOOKUP(J207,'الشبكة الاستدلالية للمرتبات'!R208:S224,2,0) -> 
K208: =IF(J208="","",VLOOKUP(J208,'الشبكة الاستدلالية للمرتبات'!A:C,3,0)) ->  | S208: =VLOOKUP(J208,'الشبكة الاستدلالية للمرتبات'!R209:S225,2,0) -> 
K209: =IF(J209="","",VLOOKUP(J209,'الشبكة الاستدلالية للمرتبات'!A:C,3,0)) ->  | S209: =VLOOKUP(J209,'الشبكة الاستدلالية للمرتبات'!R210:S226,2,0) -> 
K210: =IF(J210="","",VLOOKUP(J210,'الشبكة الاستدلالية للمرتبات'!A:C,3,0)) ->  | S210: =VLOOKUP(J210,'الشبكة الاستدلالية للمرتبات'!R211:S227,2,0) -> 
K211: =IF(J211="","",VLOOKUP(J211,'الشبكة الاستدلالية للمرتبات'!A:C,3,0)) ->  | S211: =VLOOKUP(J211,'الشبكة الاستدلالية للمرتبات'!R212:S228,2,0) -> 
K212: =IF(J212="","",VLOOKUP(J212,'الشبكة الاستدلالية للمرتبات'!A:C,3,0)) ->  | S212: =VLOOKUP(J212,'الشبكة الاستدلالية للمرتبات'!R213:S229,2,0) -> 
K213: =IF(J213="","",VLOOKUP(J213,'الشبكة الاستدلالية للمرتبات'!A:C,3,0)) ->  | S213: =VLOOKUP(J213,'الشبكة الاستدلالية للمرتبات'!R214:S230,2,0) -> 
K214: =IF(J214="","",VLOOKUP(J214,'الشبكة الاستدلالية للمرتبات'!A:C,3,0)) ->  | S214: =VLOOKUP(J214,'الشبكة الاستدلالية للمرتبات'!R215:S231,2,0) -> 
K215: =IF(J215="","",VLOOKUP(J215,'الشبكة الاستدلالية للمرتبات'!A:C,3,0)) ->  | S215: =VLOOKUP(J215,'الشبكة الاستدلالية للمرتبات'!R216:S232,2,0) -> 
K216: =IF(J216="","",VLOOKUP(J216,'الشبكة الاستدلالية للمرتبات'!A:C,3,0)) ->  | S216: =VLOOKUP(J216,'الشبكة الاستدلالية للمرتبات'!R217:S233,2,0) -> 
K217: =IF(J217="","",VLOOKUP(J217,'الشبكة الاستدلالية للمرتبات'!A:C,3,0)) ->  | S217: =VLOOKUP(J217,'الشبكة الاستدلالية للمرتبات'!R218:S234,2,0) -> 
K218: =IF(J218="","",VLOOKUP(J218,'الشبكة الاستدلالية للمرتبات'!A:C,3,0)) ->  | S218: =VLOOKUP(J218,'الشبكة الاستدلالية للمرتبات'!R219:S235,2,0) -> 
K219: =IF(J219="","",VLOOKUP(J219,'الشبكة الاستدلالية للمرتبات'!A:C,3,0)) ->  | S219: =VLOOKUP(J219,'الشبكة الاستدلالية للمرتبات'!R220:S236,2,0) -> 
K220: =IF(J220="","",VLOOKUP(J220,'الشبكة الاستدلالية للمرتبات'!A:C,3,0)) ->  | S220: =VLOOKUP(J220,'الشبكة الاستدلالية للمرتبات'!R221:S237,2,0) -> 
K221: =IF(J221="","",VLOOKUP(J221,'الشبكة الاستدلالية للمرتبات'!A:C,3,0)) ->  | S221: =VLOOKUP(J221,'الشبكة الاستدلالية للمرتبات'!R222:S238,2,0) -> 
K222: =IF(J222="","",VLOOKUP(J222,'الشبكة الاستدلالية للمرتبات'!A:C,3,0)) ->  | S222: =VLOOKUP(J222,'الشبكة الاستدلالية للمرتبات'!R223:S239,2,0) -> 
K223: =IF(J223="","",VLOOKUP(J223,'الشبكة الاستدلالية للمرتبات'!A:C,3,0)) ->  | S223: =VLOOKUP(J223,'الشبكة الاستدلالية للمرتبات'!R224:S240,2,0) -> 
K224: =IF(J224="","",VLOOKUP(J224,'الشبكة الاستدلالية للمرتبات'!A:C,3,0)) ->  | S224: =VLOOKUP(J224,'الشبكة الاستدلالية للمرتبات'!R225:S241,2,0) -> 
K225: =IF(J225="","",VLOOKUP(J225,'الشبكة الاستدلالية للمرتبات'!A:C,3,0)) ->  | S225: =VLOOKUP(J225,'الشبكة الاستدلالية للمرتبات'!R226:S242,2,0) -> 
K226: =IF(J226="","",VLOOKUP(J226,'الشبكة الاستدلالية للمرتبات'!A:C,3,0)) ->  | S226: =VLOOKUP(J226,'الشبكة الاستدلالية للمرتبات'!R227:S243,2,0) -> 
K227: =IF(J227="","",VLOOKUP(J227,'الشبكة الاستدلالية للمرتبات'!A:C,3,0)) ->  | S227: =VLOOKUP(J227,'الشبكة الاستدلالية للمرتبات'!R228:S244,2,0) -> 
K228: =IF(J228="","",VLOOKUP(J228,'الشبكة الاستدلالية للمرتبات'!A:C,3,0)) ->  | S228: =VLOOKUP(J228,'الشبكة الاستدلالية للمرتبات'!R229:S245,2,0) -> 
K229: =IF(J229="","",VLOOKUP(J229,'الشبكة الاستدلالية للمرتبات'!A:C,3,0)) ->  | S229: =VLOOKUP(J229,'الشبكة الاستدلالية للمرتبات'!R230:S246,2,0) -> 
K230: =IF(J230="","",VLOOKUP(J230,'الشبكة الاستدلالية للمرتبات'!A:C,3,0)) ->  | S230: =VLOOKUP(J230,'الشبكة الاستدلالية للمرتبات'!R231:S247,2,0) -> 
K231: =IF(J231="","",VLOOKUP(J231,'الشبكة الاستدلالية للمرتبات'!A:C,3,0)) ->  | S231: =VLOOKUP(J231,'الشبكة الاستدلالية للمرتبات'!R232:S248,2,0) -> 
K232: =IF(J232="","",VLOOKUP(J232,'الشبكة الاستدلالية للمرتبات'!A:C,3,0)) ->  | S232: =VLOOKUP(J232,'الشبكة الاستدلالية للمرتبات'!R233:S249,2,0) -> 
K233: =IF(J233="","",VLOOKUP(J233,'الشبكة الاستدلالية للمرتبات'!A:C,3,0)) ->  | S233: =VLOOKUP(J233,'الشبكة الاستدلالية للمرتبات'!R234:S250,2,0) -> 
K234: =IF(J234="","",VLOOKUP(J234,'الشبكة الاستدلالية للمرتبات'!A:C,3,0)) ->  | S234: =VLOOKUP(J234,'الشبكة الاستدلالية للمرتبات'!R235:S251,2,0) -> 
K235: =IF(J235="","",VLOOKUP(J235,'الشبكة الاستدلالية للمرتبات'!A:C,3,0)) ->  | S235: =VLOOKUP(J235,'الشبكة الاستدلالية للمرتبات'!R236:S252,2,0) -> 
K236: =IF(J236="","",VLOOKUP(J236,'الشبكة الاستدلالية للمرتبات'!A:C,3,0)) ->  | S236: =VLOOKUP(J236,'الشبكة الاستدلالية للمرتبات'!R237:S253,2,0) -> 
K237: =IF(J237="","",VLOOKUP(J237,'الشبكة الاستدلالية للمرتبات'!A:C,3,0)) ->  | S237: =VLOOKUP(J237,'الشبكة الاستدلالية للمرتبات'!R238:S254,2,0) -> 
... 346 more rows

Sheet كشف الراتب
B2: الجمهورية الجزائرية الديمقراطية الشعبية
B3: وزارة التربية الوطنية | O3: 1
B4: مديرية التربية | K4: ='واجهة حجز'!C2 -> المؤسسة : متوسطة بلطرش ثامر | Q4: 1
B5: لولاية : المسيلة | K5: ='واجهة حجز'!C3 -> عين الحجل
B6: كشف الراتب لشهر : | J6: ='واجهة حجز'!C4 -> فيفري 2018
B8: الإسم و اللقب : | C8: =LOOKUP(O3,قائمة!A2:A151,قائمة!B2:B301) -> بن عامر حدة
B9: الرتبة : | C9: =LOOKUP(O3,قائمة!A2:A151,قائمة!C2:C301) -> أستاذ في التعليم المتوسط
B10: الصنف : | C10: =LOOKUP(O3,قائمة!A2:A161,قائمة!J2:J79) -> 12 | D10: الدرجة: | H10: =LOOKUP(O3,قائمة!A2:A171,قائمة!N2:N159) -> 0 | K10: الرقم الإستدلالي : | L10: =LOOKUP(O3,قائمة!A2:A151,قائمة!M2:M151) -> 537
B11: الحالة العائلية : | C11: =LOOKUP(O3,قائمة!A2:A151,قائمة!D2:D66) -> متزوجة | D11: عدد الأولاد : | H11: =LOOKUP(O3,قائمة!A2:A171,قائمة!E2:E273) -> 0 | J11: =LOOKUP(O3,قائمة!A2:A170,قائمة!F2:F161) -> 0 | K11: رقم الحساب : | L11: =LOOKUP(O3,قائمة!A2:A41,قائمة!I2:I80) -> 9223194/12 | O11: باشا توفيق
B13: عناصر المرتب | K13: المبالغ الشهرية | L13: المبالغ السنوية
B14: الأجر الخاضع للضمان الاجتماعي | D14: الأجر القاعدي | F14: =LOOKUP(O3,قائمة!A2:A151,قائمة!K2:K199) -> 537 | G14: 45 | K14: =F14*G14 -> 24165 | L14: =K14*12 -> 289980
D15: منحة الخبرة المهنية | E15: 0 | F15: =LOOKUP(O3,قائمة!A2:A151,قائمة!P2:P387) -> 0 | G15: 45 | K15: =F15*G15 -> 0 | L15: 0
D16: =LOOKUP(Q4,'واجهة حجز'!G3:G5,'واجهة حجز'!H3:H4) -> منحة الخبرة البيداغوجية | E16: =LOOKUP(O3,قائمة!A2:A151,قائمة!N2:N151) -> 0 | F16: 4 | G16: =E16*F16 -> 0 | K16: =K14*G16/100 -> 0 | L16: 0
D17: =LOOKUP(Q4,'واجهة حجز'!G3:G6,'واجهة حجز'!I3:I6) -> منحة تحفيزية تعويضية | K17: =LOOKUP(O3,قائمة!A2:A151,قائمة!Q2:Q217) -> 1500 | L17: 18000
D18: =LOOKUP(Q4,'واجهة حجز'!G3:G9,'واجهة حجز'!J3:J9) -> 0 | E18: 35 | G18: 45 | K18: =LOOKUP(O3,قائمة!A2:A161,قائمة!R2:R163) -> 0 | L18: 0
D19: =LOOKUP(Q4,'واجهة حجز'!G3:G5,'واجهة حجز'!K3:K6) -> منحة السكن | K19: =LOOKUP(O3,قائمة!A2:A151,قائمة!T2:T451) -> 1000 | L19: 12000
D20: =LOOKUP(Q4,'واجهة حجز'!G3:G6,'واجهة حجز'!L3:L6) -> منحة التأهيل | G20: =LOOKUP(O3,قائمة!A2:A151,قائمة!U2:U461) -> 40 | K20: =(K14+K15)*G20/100 -> 9666 | L20: 115992
D21: =LOOKUP(Q4,'واجهة حجز'!G3:G6,'واجهة حجز'!M3:M6) -> منحة نوعية للمنصب | G21: =LOOKUP(O3,قائمة!A2:A151,قائمة!V2:V223) -> 10 | K21: =(K14+K15)*G21/100 -> 2416.5 | L21: 28998
D22: =LOOKUP(Q4,'واجهة حجز'!G3:G6,'واجهة حجز'!N3:N6) -> منحة الدعم المدرسي | G22: =LOOKUP(O3,قائمة!A2:A151,قائمة!W2:W108) -> 15 | K22: =(K14+K15)*G22/100 -> 3624.75 | L22: 43497
D23: =LOOKUP(Q4,'واجهة حجز'!G3:G5,'واجهة حجز'!O3:O5) -> منحة التوثيق التربوي | K23: =LOOKUP(O3,قائمة!A2:A151,قائمة!S2:S223) -> 2500 | L23: =K23*12 -> 30000
D24: =LOOKUP(Q4,'واجهة حجز'!G3:G5,'واجهة حجز'!P3:P5) -> 0 | K24: =LOOKUP(O3,قائمة!A2:A161,قائمة!X2:X234) -> 0 | L24: =K24*12 -> 0
D25: المجموع : 1 | K25: =SUM(K14:K23) -> 44872.25 | L25: 538467
B26: المنح العائلية | D26: المنح العائلية | E26: =LOOKUP(O3,قائمة!A2:A151,قائمة!E2:E177) -> 0 | F26: 300 | K26: =E26*F26 -> 0 | L26: 0
D27: منحة الأجر الوحيد | E27: =LOOKUP(O3,قائمة!A2:A151,قائمة!G2:G237) -> 0 | F27: 800 | K27: =E27*F27 -> 0 | L27: 0
D28: تعويض الأجر الوحيد | E28: =LOOKUP(O3,قائمة!A2:A173,قائمة!H2:H159) -> 0 | F28: 5.5 | K28: =E28*F28 -> 0 | L28: 0
D29: منح عائلية مضاف | E29: =LOOKUP(O3,قائمة!A2:A151,قائمة!F2:F151) -> 0 | F29: 11.25 | K29: =E29*F29 -> 0 | L29: 0
D30: المجموع : 2 | G30: مجموع المنح العائلية | K30: =SUM(K26:K29) -> 0 | L30: 0
D31: المجموع : 3 = 1 + 2 | G31: مجموع الخام | K31: =K25+K30 -> 44872.25 | L31: =L25+L30 -> 538467
B32: الإقتطاعات | D32: الضمان الإجتماعي | G32: 9 | K32: =K25*0.09 -> 4038.5025 | L32: =K32*12 -> 48462.03
D33: ضريبة الدخل الشامل | F33: =K25-(K19+K21) -> 41455.75 | G33: =INT((F33-K32)/10)*10 -> 37410 | K33: =IF(G33<15000,0,IF(G33<22500,(G33-15000)/10*2,IF(G33<28750,(G33-22500)/10*1.2+1500,IF(G33<30000,(G33-28750)/10*2+2250,IF(G33<100000,(G33-30000)/10*3+2500))))) -> 4723 | L33: 56676
D34: تعاضدية عمال التربية | G34: =LOOKUP(O3,قائمة!A2:A159,قائمة!Y2:Y158) -> 0 | K34: =K25*G34/100 -> 0 | L34: 0
D35: الخدمات الإجتماعية | K35: =LOOKUP(O3,قائمة!A2:A151,قائمة!Z2:Z151) -> 0 | L35: 0
D36: اقتطاعات أخرى | K36: =LOOKUP(O3,قائمة!A2:A151,قائمة!AA2:AA154) -> 0 | L36: 0
D37: مجموع الإقتطاعات : 4 | G37: مجموع الإقتطاعات | K37: =SUM(K32:K36) -> 8761.5025 | L37: 105138.03
D38: المجموع الصافي للدفع : 5 = 3 - 4 | G38: المجموع الصافي | K38: =(K25+K26+K27+K28+K29)-K37 -> 36110.7475 | L38: =(L25+L26+L27+L29)-L37 -> 433328.97
K40: ='واجهة حجز'!C5 -> عين الحجل في : | L40: ='واجهة حجز'!D5 -> 2018-02-21
K41: ='واجهة حجز'!C6 -> المسير المالي

Sheet الشبكة الاستدلالية للمرتبات (hidden)
C1: ر ا الأدنى | E1: الدرجات
A2: الرقم | B2: الصنف | D2: 0 | E2: 1 | F2: 2 | G2: 3 | H2: 4 | I2: 5 | J2: 6 | K2: 7 | L2: 8 | M2: 9 | N2: 10 | O2: 11 | P2: 12 | R2: الصنف | S2: م ت التربوي | T2: م التأهيل | U2: م ن للمنصب | V2: م ت تعويضية | W2: م د المدرسي | X2: م السكن
A3: 1 | B3: 1 | C3: 200 | D3: 0 | E3: 10 | F3: 20 | G3: 30 | H3: 40 | I3: 50 | J3: 60 | K3: 70 | L3: 80 | M3: 90 | N3: 100 | O3: 110 | P3: 120 | R3: 1 | S3: 2000 | T3: 40
A4: 2 | B4: 2 | C4: 219 | D4: 0 | E4: 11 | F4: 22 | G4: 33 | H4: 44 | I4: 55 | J4: 66 | K4: 77 | L4: 88 | M4: 99 | N4: 110 | O4: 120 | P4: 131 | R4: 2 | S4: 2000 | T4: 40
A5: 3 | B5: 3 | C5: 240 | D5: 0 | E5: 12 | F5: 24 | G5: 36 | H5: 48 | I5: 60 | J5: 72 | K5: 84 | L5: 96 | M5: 108 | N5: 120 | O5: 132 | P5: 144 | R5: 3 | S5: 2000 | T5: 40
A6: 4 | B6: 4 | C6: 263 | D6: 0 | E6: 13 | F6: 26 | G6: 39 | H6: 53 | I6: 66 | J6: 79 | K6: 92 | L6: 105 | M6: 118 | N6: 132 | O6: 145 | P6: 158 | R6: 4 | S6: 2000 | T6: 40
A7: 5 | B7: 5 | C7: 288 | D7: 0 | E7: 14 | F7: 29 | G7: 43 | H7: 58 | I7: 72 | J7: 86 | K7: 101 | L7: 115 | M7: 130 | N7: 144 | O7: 158 | P7: 173 | R7: 5 | S7: 2000 | T7: 40
A8: 6 | B8: 6 | C8: 315 | D8: 0 | E8: 16 | F8: 32 | G8: 47 | H8: 63 | I8: 79 | J8: 95 | K8: 110 | L8: 126 | M8: 142 | N8: 158 | O8: 173 | P8: 189 | R8: 6 | S8: 2000 | T8: 40
A9: 7 | B9: 7 | C9: 348 | D9: 0 | E9: 17 | F9: 35 | G9: 52 | H9: 70 | I9: 87 | J9: 104 | K9: 122 | L9: 139 | M9: 157 | N9: 174 | O9: 191 | P9: 209 | R9: 7 | S9: 2000 | T9: 40
A10: 8 | B10: 8 | C10: 379 | D10: 0 | E10: 19 | F10: 38 | G10: 57 | H10: 76 | I10: 95 | J10: 114 | K10: 133 | L10: 152 | M10: 171 | N10: 190 | O10: 208 | P10: 225 | R10: 8 | S10: 2000 | T10: 40
A11: 9 | B11: 9 | C11: 418 | D11: 0 | E11: 21 | F11: 42 | G11: 63 | H11: 84 | I11: 105 | J11: 125 | K11: 146 | L11: 167 | M11: 188 | N11: 209 | O11: 230 | P11: 251 | R11: 9 | S11: 2000 | T11: 40
A12: 10 | B12: 10 | C12: 453 | D12: 0 | E12: 23 | F12: 45 | G12: 68 | H12: 91 | I12: 113 | J12: 136 | K12: 159 | L12: 181 | M12: 204 | N12: 227 | O12: 249 | P12: 272 | R12: 10 | S12: 2000 | T12: 40
A13: 11 | B13: 11 | C13: 498 | D13: 0 | E13: 25 | F13: 50 | G13: 75 | H13: 100 | I13: 125 | J13: 149 | K13: 174 | L13: 199 | M13: 224 | N13: 249 | O13: 274 | P13: 299 | R13: 11 | S13: 2500 | T13: 40 | V13: 1500 | W13: 15
A14: 12 | B14: 12 | C14: 537 | D14: 0 | E14: 27 | F14: 54 | G14: 81 | H14: 107 | I14: 134 | J14: 161 | K14: 188 | L14: 215 | M14: 242 | N14: 269 | O14: 295 | P14: 322 | R14: 12 | S14: 2500 | T14: 40 | U14: 10 | V14: 1500 | W14: 15 | X14: 1000
A15: 13 | B15: 13 | C15: 578 | D15: 0 | E15: 29 | F15: 58 | G15: 87 | H15: 116 | I15: 145 | J15: 173 | K15: 202 | L15: 231 | M15: 260 | N15: 289 | O15: 318 | P15: 347 | R15: 13 | S15: 3000 | T15: 45 | U15: 10 | V15: 1500 | W15: 15 | X15: 1000
A16: 14 | B16: 14 | C16: 621 | D16: 0 | E16: 31 | F16: 62 | G16: 93 | H16: 124 | I16: 155 | J16: 186 | K16: 217 | L16: 248 | M16: 279 | N16: 311 | O16: 342 | P16: 373 | R16: 14 | S16: 3000 | T16: 45 | U16: 10 | V16: 1500 | W16: 15 | X16: 1000
A17: 15 | B17: 15 | C17: 666 | D17: 0 | E17: 33 | F17: 67 | G17: 100 | H17: 133 | I17: 167 | J17: 200 | K17: 133 | L17: 266 | M17: 300 | N17: 333 | O17: 366 | P17: 400 | R17: 15 | S17: 3000 | T17: 45 | U17: 10 | V17: 1500 | W17: 15 | X17: 1000
A18: 16 | B18: 16 | C18: 713 | D18: 0 | E18: 36 | F18: 71 | G18: 107 | H18: 143 | I18: 178 | J18: 214 | K18: 250 | L18: 285 | M18: 321 | N18: 357 | O18: 392 | P18: 428 | R18: 16 | S18: 3000 | T18: 45 | U18: 10 | V18: 1500 | W18: 15 | X18: 1000
A19: 17 | B19: 17 | C19: 762 | D19: 0 | E19: 38 | F19: 76 | G19: 114 | H19: 152 | I19: 191 | J19: 229 | K19: 267 | L19: 305 | M19: 343 | N19: 381 | O19: 419 | P19: 457 | R19: 17 | S19: 3000 | T19: 45 | U19: 10 | V19: 1500 | W19: 15 | X19: 1000
P24: Bacha Toufik
P27: Sous-Intendant
P30: Sidi Aissa
